Cogmind - Beta 16.1 @@@ ROGUE MODE // 2026.03.10 @ 04:31:26 Player: Savant Result: Escaped! Performance ------------- Evolutions (9) 4500 Regions Visited (25) 5000 Robots Destroyed (484) 2420 Value Destroyed (28666) 28666 Prototype IDs (142) 2840 Alien Tech Used (4) 800 Bonus (43922) 43922 TOTAL SCORE: 88148 Bonus ------- Triggered High Security 1000 High Alert Combat Kills 14067 Follower Combat Kills 240 Hunted by Unchained 500 Subatomizer Sterilization 3000 Entered Garrisons 200 Acquired ECA 300 Met Zhirov 300 Met Warlord at Base 500 MAIN.C Attacked Warlord 500 Warlord Defense Kills 868 Met Warlord at Research 2000 Invited to Help at Command 2000 Scanned by Researcher 500 Destroyed Superfortress 15000 Win 3000 Friendly Fire -53 Cogmind --------- Core Integrity 936/1600 Matter 290/300 Energy 1885/2071 System Corruption 20% Temperature Cool (3) Movement Hovering (46) Location To Epsilon Eridani Parts ------- > --- POWER (3) -------- Experimental Antimatter Reactor ZP-Graviton Core > --- PROPULSION (6) --- Hovering Antigrav-Biomechanical Exoskeleton Concept Gyrokinetic System > --- UTILITY (12) ----- Scrap Engine Concept Phasing Heat Sink (fused) Concept Thermoelectric Network Concept Antigrav Storage Unit Experimental Optical Array Concept Core Analysis Suite Improved Transmission Jammer Concept Cloak Mesh Concept RG22 Armor Concept Navigation Harness > --- WEAPON (4) ------- Powered Hammer > --- INVENTORY (25) --- Advanced Surge Thruster Experimental Surge Thruster Concept Thermoelectric Network Concept Chromion Battery (800) Concept Chromion Battery (800) Concept Chromion Battery (800) Concept NT7 Matterbank (37) Experimental Targeting Computer Concept Weapon Articulator Concept Core Analysis Suite Mini Quantum Capacitor Graphene Brace Concept Beam Splitter Concept Impact Drone Bay (6/6) Transdimensional Reconstructor Subatomic Replicator Peak State ------------ > --- POWER ------------ ZP-Graviton Core > --- PROPULSION ------- Hovering Antigrav-Biomechanical Exoskeleton > --- UTILITY ---------- Armored Scrap Engine Concept Phasing Heat Sink Concept Thermoelectric Network Concept Antigrav Storage Unit Concept Countertargeting System Concept Core Analysis Suite Experimental ECM Suite Concept Cloak Mesh Concept Cloak Mesh Concept Energy Mantle Advanced Hacking Suite > --- WEAPON ----------- Concept Miniperforator Hpw. Accelerated Hardcell Construct/C > --- INVENTORY -------- Experimental Antimatter Reactor Concept Gyrokinetic System Experimental Surge Thruster Experimental Coolant Injector Concept Thermoelectric Network Concept Chromion Battery Concept Chromion Battery Concept Chromion Battery Concept NT7 Matterbank Concept Weapon Articulator Concept Core Analysis Suite Mini Quantum Capacitor Concept RG22 Armor Graphene Brace Concept Beam Splitter Crosscalibrator Concept Impact Drone Bay Transdimensional Reconstructor Subatomic Replicator Concept Navigation Harness Concept Nanofilaments [Endoweave] Enhanced Hardcell Cannon [Rating: 281] Favorites ----------- Power Constructs Engine Subdweller Power Source Power Core Constructs Reactor Cooled Antimatter Reactor Propulsion Constructs Treads Light Treads Leg Experimental Myomer Leg Wheel Armored Huge Wheel Hover Unit Constructs Flight Unit Experimental Surge Thruster Utility Armored Scrap Engine Device Armored Scrap Engine Storage Huge Storage Unit Processor Advanced Targeting Computer Hackware Advanced Hacking Suite Protection Makeshift Light Armor Plating Weapon Constructs Energy Gun Subdweller Laser Energy Cannon HERF Cannon Ballistic Gun Flak Gun Ballistic Cannon Constructs Launcher Rocket Launcher Special Weapon Mining Laser Impact Weapon Powered Hammer Slashing Weapon Katana Piercing Weapon Lance Build | -11 -10 -10 -10 -8 -8 -7 -7 -7 -5 -5 -5 -5 -4 -4 -4 -4 -4 -3 -3 -3 -2 -2 -2 -1 -1 ------- Run | Yrd Mat Min Sub Mat Gar Fac Sto Rec Fac Upp Upp Zhi Pro Fac Upp Upp War Pro Res Tes Res Qua Frg Acc Com Slots Evolved 18 | . . . . 4 . 2 . . 4 . . . . 2 . . . . 2 . 2 . . 2 . Power 2 | . . . . . . . . . 1 . . . . . . . . . 1 . . . . . . Propulsion 4 | . . . . 2 . 1 . . . . . . . 1 . . . . . . . . . . . Utility 10 | . . . . 2 . . . . 3 . . . . 1 . . . . . . 2 . . 2 . Weapon 2 | . . . . . . 1 . . . . . . . . . . . . 1 . . . . . . Parts Attached 213 | 8 6 1 29 3 12 14 2 1 3 4 7 4 3 24 2 1 9 4 6 13 7 3 25 5 17 Power 17 | 1 . . 6 . 2 . 1 . . 1 1 . 2 1 . . . . . 1 . . . . 1 Engine 8 | 1 . . 6 . . . 1 . . . . . . . . . . . . . . . . . . Core 7 | . . . . . 2 . . . . 1 1 . 2 1 . . . . . . . . . . . Reactor 2 | . . . . . . . . . . . . . . . . . . . . 1 . . . . 1 Propulsion 41 | 2 . . 10 2 5 4 . . . . . . . 3 . . 1 3 1 2 2 . 5 . 1 Treads 9 | 2 . . 1 2 2 1 . . . . . . . 1 . . . . . . . . . . . Leg 2 | . . . . . . . . . . . . . . . . . 1 . . 1 . . . . . Wheel 16 | . . . 9 . 3 3 . . . . . . . . . . . 1 . . . . . . . Hover 7 | . . . . . . . . . . . . . . 2 . . . 1 . . 2 . 1 . 1 Flight 7 | . . . . . . . . . . . . . . . . . . 1 1 1 . . 4 . . Utility 96 | 2 3 . 3 1 . 5 1 1 2 1 3 3 . 12 . . 4 1 4 10 5 3 20 3 9 Device 53 | 1 1 . 1 . . 2 . 1 1 1 2 . . 5 . . 3 . 4 8 2 3 13 . 5 Storage 11 | 1 2 . 1 . . 2 . . . . . 1 . . . . . . . 1 . . 3 . . Processor 13 | . . . . 1 . . . . 1 . . . . 2 . . . . . 1 2 . 2 1 3 Hackware 6 | . . . . . . . 1 . . . . . . 3 . . . . . . . . . 2 . Protection 13 | . . . 1 . . 1 . . . . 1 2 . 2 . . 1 1 . . 1 . 2 . 1 Artifact . | . . . . . . . . . . . . . . . . . . . . . . . . . . Weapon 59 | 3 3 1 10 . 5 5 . . 1 2 3 1 1 8 2 1 4 . 1 . . . . 2 6 Energy Gun 16 | 2 2 . 4 . . 1 . . . 1 . . 1 . . . 3 . . . . . . . 2 Energy Cannon 7 | . . . 1 . . 1 . . . 1 1 . . 2 . . . . 1 . . . . . . Ballistic Gun 16 | 1 . . 2 . 3 2 . . . . . . . 6 2 . . . . . . . . . . Ballistic Cannon 8 | . . . 2 . . . . . 1 . . . . . . . . . . . . . . 2 3 Launcher 4 | . . 1 1 . . 1 . . . . . . . . . . 1 . . . . . . . . Special Weapon 2 | . 1 . . . 1 . . . . . . . . . . . . . . . . . . . . Impact Weapon 1 | . . . . . . . . . . . . . . . . . . . . . . . . . 1 Slashing Weapon 4 | . . . . . 1 . . . . . 2 . . . . 1 . . . . . . . . . Piercing Weapon 1 | . . . . . . . . . . . . 1 . . . . . . . . . . . . . Special Melee Weapon . | . . . . . . . . . . . . . . . . . . . . . . . . . . Unidentified Prototypes 21 | . . . . . . 1 1 1 . . . 3 . . . . 3 3 . 2 . . 3 . 4 Parts Lost 44 | . . . 4 . 4 . 1 . 1 3 2 . 3 2 . 1 . 1 . 2 . . 3 1 16 Power 10 | . . . 2 . 1 . 1 . . 1 . . 1 1 . . . . . . . . 1 . 2 Propulsion 3 | . . . . . 1 . . . . . . . . . . . . . . 1 . . . . 1 Utility 15 | . . . 1 . . . . . . 1 . . 2 . . 1 . 1 . 1 . . 1 1 6 Weapon 16 | . . . 1 . 2 . . . 1 1 2 . . 1 . . . . . . . . 1 . 7 Highest Loss Streak 11 | . . . 3 . 1 . 1 . 1 2 2 . 3 1 . 1 . 1 . 1 . . 1 1 11 To Critical Strikes 1 | . . . . . 1 . . . . . . . . . . . . . . . . . . . . Average Backups 19 | 5 9 15 14 13 15 16 21 24 15 15 15 20 18 21 24 24 23 23 23 23 23 23 23 23 22 Power . | . 1 1 . . . . 1 1 . . . . . . . . . . . . . . . 1 . Propulsion 2 | 3 3 3 2 1 4 4 5 8 4 2 . . . . . . . 1 . . . . . 2 2 Utility 10 | . 2 2 2 4 5 6 9 9 6 8 9 11 10 13 16 16 15 14 14 15 17 17 17 16 14 Weapon 5 | 1 2 9 8 6 4 3 4 4 3 3 3 5 4 4 5 5 5 6 6 6 5 4 3 1 1 Tool/Special . | . . . . . . . . . . . . . . . . . . . . . . . . . . Unused Backups 90 | . 2 . 6 2 2 2 2 6 . 5 2 . . 10 . . 8 1 2 12 3 4 11 . 10 Power 2 | . . . . . . . . 1 . . . . . 1 . . . . . . . . . . . Propulsion 18 | . 1 . 2 . 1 . . 4 . 3 1 . . . . . . . 1 3 . . 1 . 1 Utility 43 | . 1 . . . 1 2 2 . . . . . . 5 . . 5 1 1 6 2 3 7 . 7 Weapon 22 | . . . 4 2 . . . 1 . 2 1 . . 3 . . 2 . . 3 1 . 3 . . Tool/Special 5 | . . . . . . . . . . . . . . 1 . . 1 . . . . 1 . . 2 Average Slot Usage (%) 70 | . 100 100 98 85 76 80 84 67 68 61 67 61 64 61 56 56 57 62 52 55 55 55 55 57 61 Engine 4 | . 14 14 13 9 5 . 2 6 10 . . 5 3 . . . . . . . . . . . . Core 1 | . . . . . 3 7 4 . . 6 8 5 4 3 . . . . . . . . . . 1 Reactor 2 | . . . . . . . . . . . . . . 1 5 5 5 5 4 8 4 4 4 4 3 Treads 5 | . 28 28 17 14 6 7 7 3 5 3 3 . . 3 . . . . . . . . . . . Leg 1 | . . . . . . . . . . . 1 2 . 1 5 5 6 9 . 5 1 . . . . Wheel 4 | . . . 10 18 16 15 15 8 . . . . . . . . . . . . . . . . . Hover 1 | . . . . . . . . . . 1 . 2 5 2 . . . . . . 5 7 2 3 4 Device 14 | . 14 14 11 9 . 10 . 4 19 17 16 12 10 9 14 14 14 14 17 20 20 21 27 33 28 Storage 7 | . 14 14 14 9 9 7 7 7 5 5 5 5 5 5 5 5 5 5 4 4 4 4 4 4 4 Processor 6 | . . . . . 9 7 7 7 8 11 11 11 11 10 10 10 10 10 9 6 12 13 5 . 6 Hackware 1 | . . . . . . . 6 2 . . . . . 8 5 5 5 3 . . . . . 2 1 Protection 1 | . . . . 8 8 1 6 2 . . . 3 4 1 1 . . 1 1 . . . . 2 2 Energy Gun 3 | . 14 28 11 9 8 2 3 1 . 2 . . . 2 . . 1 . . . . . . . . Energy Cannon 2 | . . . 1 . . 1 3 . 4 4 5 5 5 3 . 1 . 4 8 4 4 4 3 . . Ballistic Gun 5 | . 11 . 10 9 6 13 15 12 . . . . . 2 5 2 . . . . . . . . . Ballistic Cannon 2 | . . . 3 . . . . . 7 3 . . . . 4 5 5 5 . . . . . 6 8 Slashing Weapon 1 | . . . . . 1 3 . 5 2 1 6 . 3 3 . . 1 . . . . . . . . Peak Build Rating 281 | 8 11 11 32 46 55 62 53 66 80 87 94 102 102 132 130 130 147 146 158 178 193 196 262 281 281 Average Rating 105 | 5 8 11 14 41 51 52 50 52 70 76 84 91 92 117 124 124 131 141 150 169 190 193 226 269 261 On Entrance 102 | . 8 11 11 31 46 54 51 53 56 73 84 80 102 93 126 127 124 142 145 158 176 189 193 251 277 Avg Prop Armor Cover (%) 9 | . . . 15 12 14 8 7 7 . . . . . 2 . . . . . 1 1 . 1 . . Naked Turns . | . . . . . . . . . . . . . . . . . . . . . . . . . . Heaviest Build 221 | 14 32 32 213 218 217 221 111 111 82 82 123 106 83 127 128 127 134 134 134 162 150 150 169 119 121 Greatest Support 251 | 40 40 40 40 20 112 56 56 56 40 152 152 151 83 181 176 176 150 150 175 191 216 235 251 141 132 Greatest Overweight (x) 10 | . . . 10 10 10 3 1 3 2 2 . 1 1 1 . . 1 . 1 . . . 1 1 . Average Overweight (x) . | . . . 1 10 3 1 1 1 1 . . . . . . . . . . . . . . . . Largest Inventory Capacity 35 | 8 15 15 35 35 35 35 25 25 20 20 25 25 20 25 25 25 25 25 25 25 25 25 25 25 25 Average Capacity 23 | 7 11 15 17 35 35 25 25 24 20 20 23 23 20 21 25 25 25 25 25 25 25 25 25 25 25 Most Carried 35 | 8 15 15 33 34 35 35 25 25 19 19 19 24 20 25 25 25 25 25 25 25 25 25 25 25 25 Average Carried 21 | 5 9 15 15 30 33 25 22 24 15 15 15 20 18 21 24 24 24 24 24 24 24 24 24 24 22 Final Capacity 35 | 8 15 15 35 35 35 25 25 20 20 20 25 20 20 25 25 25 25 25 25 25 25 25 25 25 25 Final Carried 34 | 8 15 15 31 34 32 21 25 17 19 15 19 19 19 25 24 23 25 25 25 25 25 25 24 23 16 Scrap Engine Consumption 234 | . . . . . . . . 48 6 9 13 5 7 41 6 8 14 3 7 15 4 . 42 2 4 Constructs Created 7 | . . . . . . . . 3 . 1 2 . . 1 . . . . . . . . . . . Constructs Modified 98 | . . . . . . . . 15 1 5 2 2 4 14 5 4 1 . 4 8 5 3 17 6 2 Class Distribution -------------------- 50% | Construct 20% | Mutant 9% | Hauler-Mutant 5% | Scavenger-Mutant 3% | Hacker-Construct 3% | Gunner Dominant Class ---------------- Mutant | -10/Materials Mutant | -10/Mines Mutant | -10/Subcaves Hauler-Mutant | -8/Materials Hauler-Mutant | -8/Garrison Hauler-Mutant | -7/Factory Gunner | -7/Storage Construct | -7/Recycling Construct | -5/Factory Construct | -5/Upper Caves Mutant | -5/Upper Caves Construct | -5/Zhirov Construct | -4/Proximity Caves Hacker-Construct | -4/Factory Construct | -4/Upper Caves Construct | -4/Upper Caves Commander-Construct | -4/Warlord Construct | -3/Proximity Caves Construct | -3/Research Construct | -3/Testing Construct | -2/Research Construct | -2/Quarantine Construct | -2/Protoforge Infiltrator-Construct | -1/Access Construct | -1/Command Resources | -11 -10 -10 -10 -8 -8 -7 -7 -7 -5 -5 -5 -5 -4 -4 -4 -4 -4 -3 -3 -3 -2 -2 -2 -1 -1 ----------- Run | Yrd Mat Min Sub Mat Gar Fac Sto Rec Fac Upp Upp Zhi Pro Fac Upp Upp War Pro Res Tes Res Qua Frg Acc Com Matter Collected 17428 | 307 116 36 1007 120 867 310 178 296 45 790 437 104 242 1487 827 461 230 885 523 1230 258 557 3286 347 2482 Remotely 538 | . . . . . . . . . . . . . . 115 74 . . 77 . 272 . . . . . Salvage Created 21760 | 132 193 36 470 . 1539 330 304 780 224 700 448 104 296 2789 369 415 371 491 315 1104 265 1333 6599 99 2054 Parts 967 | 8 11 1 42 . 67 22 15 48 7 14 20 . 22 152 20 21 8 17 10 67 10 65 233 3 84 Haulers Intercepted 10 | . . . . . . . 3 . . . . . . 5 . . . . . 1 1 . . . . Recyclers Shooed 10 | 2 . . . . . . 1 . . . . . . 6 . . . . . . . . . . 1 Parts Field Recycled . | . . . . . . . . . . . . . . . . . . . . . . . . . . Retrieved Matter . | . . . . . . . . . . . . . . . . . . . . . . . . . . Parts Self-Destructed 90 | . . . 15 . . . . . . 11 13 . 12 . 11 17 . 11 . . . . . . . Prevented 10 | . . . . . . . . . . 1 2 . . . . 3 . 4 . . . . . . . Parts Restored 4 | . . . . . . . . . . . . . . . . . . . . . . . 4 . . Faulty 4 | . . . . . . . . . . . . . . . . . . . . . . . 4 . . Kills | -11 -10 -10 -10 -8 -8 -7 -7 -7 -5 -5 -5 -5 -4 -4 -4 -4 -4 -3 -3 -3 -2 -2 -2 -1 -1 ------- Run | Yrd Mat Min Sub Mat Gar Fac Sto Rec Fac Upp Upp Zhi Pro Fac Upp Upp War Pro Res Tes Res Qua Frg Acc Com Combat Hostiles Destroyed 426 | . 4 3 12 . 31 6 3 2 4 16 15 . 16 40 9 6 7 13 4 16 3 17 163 4 32 Melee 11 | . . . . . . 1 . . . . 1 . 3 4 . . . . . . . . 2 . . Guns 51 | . 4 1 6 . 18 5 3 2 . . . . . 10 1 1 . . . . . . . . . Cannons 266 | . . . 2 . . . . . 1 7 5 . 1 6 8 5 2 3 4 16 3 17 150 4 32 AOE 80 | . . 2 4 . 13 . . . 3 9 9 . 12 12 . . 5 9 . . . . 2 . . Classes Destroyed 28 | 2 2 1 2 . 3 3 2 . 1 1 1 . 1 . . . 1 . . 1 . . 7 . . Worker 4 | . . . . . . . 1 . 1 . . . . . . . . . . 2 . . . . . Builder 20 | . . . . . . 2 . 12 . . . . . 3 . . . . . 1 . . 2 . . Tunneler 3 | 3 . . . . . . . . . . . . . . . . . . . . . . . . . Hauler 10 | . . . . . . . 3 . . . . . . 5 . . . . . 1 1 . . . . Recycler 6 | 1 . . . . . . . 2 . . . . . 2 . . . . . . . . . . 1 Mechanic 5 | . . . . . . . . . 1 . . . . . . . . . . . . . 3 . 1 Operator 3 | . . . . . . 1 1 . . . . . . 1 . . . . . . . . . . . Drone 14 | . . . . . . . . . . . . . 2 . . . . . . . . . 11 1 . Turret 1 | . . . 1 . . . . . . . . . . . . . . . . . . . . . . Watcher 5 | . 1 . . . . . . . . . . . . 1 . . . . . 1 . 1 1 . . Swarmer 78 | . . 3 4 . 6 . . . . 5 9 . 12 18 4 . . 6 . 5 2 . . . 4 Cutter 4 | . . . . . . . . . . . . . . . . . . . . . . . . . 4 Saboteur 7 | . . . . . . . . . . . . . . . . . . . . . . . 6 . 1 Grunt 107 | . 4 . . . 16 2 . . 3 7 1 . . 1 . . 3 5 3 3 . 5 44 . 10 Brawler 19 | . . . . . 2 . . . . 1 . . . . . 1 1 . . . . . 11 . 3 Duelist 15 | . . . . . 2 . . . . . . . . . . . 1 . 1 . . . 10 . 1 Protector 5 | . . . . . . . . . . . . . . . . . 2 . . . . . 3 . . Researcher 2 | . . . . . . . . . . . . . . . . . . . . . . . 2 . . Sentry 35 | . . . . . 5 2 3 1 1 . 1 . . 7 1 1 . . . . 1 . 12 . . Specialist 7 | . . . . . . . . . . . . . . . . . . . . 3 . . 3 . 1 Hunter 35 | . . . . . . . . . . . 4 . . 7 . 2 . 2 . 2 . 6 10 . 2 Programmer 49 | . . . . . . 2 . . . 2 . . 2 7 . 2 . . . 3 . 6 21 1 3 Behemoth 1 | . . . . . . . . . . 1 . . . . . . . . . . . . . . . Hotshot 2 | . . . . . . . . . . . . . . . . . . . . . . . 2 . . Decapitator 15 | . . . . . . . . . . . . . . . . . . . . . . . 15 . . Immortal 6 | . . . . . . . . . . . . . . . . . . . . . . . 6 . . Striker 5 | . . . . . . . . . . . . . . . . . . . . . . . 2 2 1 Executioner 3 | . . . . . . . . . . . . . . . . . . . . . . . 1 . 2 Alpha 7 2 | . . . . . . . . . . . . . . . . . . . . . . . 2 . . V-Series 3 | . . . . . . . . . . . . . . . . . . . . . . . 3 . . Subdweller 9 | . . . 8 . . . . 1 . . . . . . . . . . . . . . . . . Wasp 3 | . . . . . . . . . . . . . . . 3 . . . . . . . . . . Thug 1 | . . . . . . . . . . . . . . . 1 . . . . . . . . . . Best Kill Streak 21 | 4 2 3 5 . 8 2 7 3 5 10 5 . 8 6 4 2 5 5 4 6 2 6 21 3 7 Combat Bots Only 20 | . 2 3 4 . 8 2 2 1 4 10 5 . 8 5 4 2 5 5 4 4 2 6 20 3 6 Max Kills in Single Turn 5 | 1 1 2 2 . 3 1 2 1 2 2 3 . 4 3 2 1 5 2 1 1 1 1 3 1 2 Gunslinging 1 | . . . . . 1 . . . . . . . . . . . . . . . . . . . . Exploded 5 | . . 2 2 . 3 . . . 2 2 3 . 4 3 . . 5 2 . . . . 2 . . Melee 1 | . . . . . . 1 . . . . 1 . 1 1 . . . . . . . . 1 . . Uniques/NPCs Destroyed 1 | . . . . . . . . . . . . . . . . . . . . . . . 1 . . Superfortress (-2/Protoforge) Combat | -11 -10 -10 -10 -8 -8 -7 -7 -7 -5 -5 -5 -5 -4 -4 -4 -4 -4 -3 -3 -3 -2 -2 -2 -1 -1 -------- Run | Yrd Mat Min Sub Mat Gar Fac Sto Rec Fac Upp Upp Zhi Pro Fac Upp Upp War Pro Res Tes Res Qua Frg Acc Com Hostile Shots Fired 3005 | . 8 5 65 . 165 49 72 25 51 86 67 . 85 315 46 59 16 67 46 85 10 210 868 113 492 Missed 1267 | . 3 2 23 . 48 15 32 12 11 23 15 . 26 133 16 27 5 27 28 25 . 91 452 49 204 Hits 1738 | . 5 3 42 . 117 34 40 13 40 63 52 . 59 182 30 32 11 40 18 60 10 119 416 64 288 Melee 72 | . . . . . 4 . . . . . . . . . . . . . . . . . 41 . 27 Projectile 1666 | . 5 3 42 . 113 34 40 13 40 63 52 . 59 182 30 32 11 40 18 60 10 119 375 64 261 AOE 25 | . . . . . . . . . . . . . . . . . . . . . . . 20 2 3 Critical Strikes 108 | . . . 1 . 4 . . . 3 1 1 . 3 4 2 1 2 . 1 2 . 5 53 1 24 Actively Blocked 64 | . . . . . . . . . . . . . . . . . . . . 1 . . 48 . 15 Part Disruptions 5 | . . . . . . . . . 1 1 . . . 1 . . . . . 1 . . . . 1 Damage Taken 27610 | . 53 23 987 . 1861 319 305 172 985 1312 993 . 1118 3268 560 595 207 793 389 789 75 1117 5074 864 5751 Core 2596 | . . . 199 . 290 33 37 . 112 64 79 . 68 309 15 . . 38 90 9 . 92 497 81 583 Absorbed by Shields 9591 | . . . . . 19 . . . . . . . . . . . 104 102 . 420 30 1087 5090 890 1849 Redirected to Shielding 188 | . . . . . . . . . . . . . 154 . . . . . . . . . 34 . . Ignored by Resistances 2292 | . . . . . . . . . . . . . . . . . . . . 41 . 416 1391 51 393 Regen/Repaired (Parts) 10830 | . . . . . . . . 80 . 591 447 328 533 1754 542 655 129 18 813 267 390 544 1917 1404 418 Core Remaining (%) 66 | 100 . . 20 . 47 . . 90 . . . . 67 . . . . 68 . 92 . . 54 . 58 Volleys Fired 1244 | 9 29 3 69 . 116 21 13 5 16 40 16 . 17 101 25 18 12 41 25 54 21 69 407 24 93 Largest 3 | 2 2 2 2 . 2 3 3 3 3 3 3 . 2 3 2 2 2 2 2 1 1 1 1 2 3 Hottest 293 | 60 100 90 100 . 120 138 136 136 160 198 206 . 141 215 79 176 176 176 226 176 176 166 293 183 233 Shots Fired 1651 | 18 43 5 87 . 183 42 39 15 34 81 28 . 20 172 49 37 21 48 32 52 21 69 386 30 139 Gun 465 | 18 28 4 42 . 150 27 33 15 . 10 4 . . 86 24 13 1 . . . . . . . 10 Cannon 1059 | . . . 16 . . 15 6 . 31 63 17 . 9 79 25 24 18 37 32 52 21 69 386 30 129 Launcher 82 | . . 1 19 . 13 . . . 3 8 7 . 11 7 . . 2 11 . . . . . . . Special 45 | . 15 . 10 . 20 . . . . . . . . . . . . . . . . . . . . Kinetic 603 | 9 9 . 19 . 67 21 26 10 22 33 4 . 5 60 49 31 . . . . . . 79 30 129 Thermal 788 | 9 15 . 49 . 103 21 13 5 9 30 13 . 4 51 . . 9 30 25 52 21 69 260 . . Explosive 82 | . . 1 19 . 13 . . . 3 8 7 . 11 7 . . 2 11 . . . . . . . Electromagnetic 130 | . 19 4 . . . . . . . 10 4 . . 54 . 6 9 7 7 . . . . . 10 Entropic 48 | . . . . . . . . . . . . . . . . . 1 . . . . . 47 . . Robot Hit Streak 27 | 12 7 2 15 . 16 21 9 9 10 9 8 . 1 16 15 9 11 5 6 25 6 10 27 8 20 Robot Miss Streak 7 | 1 2 4 1 . 3 6 3 3 5 4 1 . 4 4 3 2 1 2 3 1 1 2 5 2 7 Penetration Max 2 | . . . . . . . . . . . 1 . . 1 1 2 . . . . . . 2 1 2 Secondary Targets 5 | . . . . . 4 . . . . . . . . 1 . . . . . . . . . . . Max Gunslinging Chain 1 | . . . . . 1 . . . . . . . . 1 . . . . . . . . . . . Capacitor 168 | . . . . . . . . . . . . . . . . . . . . . . . 168 . . Shots Hit Robots 1099 | 13 13 1 46 . 161 27 32 35 27 54 28 3 15 125 29 24 16 16 8 33 6 27 256 10 94 Core Hits 716 | 5 9 2 27 . 72 27 33 28 10 42 26 1 24 73 12 11 19 24 5 13 4 9 137 5 98 Critical Kills 41 | . . . . . 1 . . . . . . . . 1 1 . . 1 . 5 1 1 12 . 18 Critical Parts Destroyed 59 | . . . . . 2 . . . . . . . . 1 3 1 . 1 . 2 . 4 15 2 28 Critical Strikes 130 | . 1 . 1 . 3 . . . . 1 1 . 4 8 4 1 . 2 . 7 2 5 29 5 56 Burn 3 | . . . . . . . . . . . . . . 3 . . . . . . . . . . . Meltdown 9 | . . . . . . . . . . . . . . . . . . . . . . . 9 . . Destroy 100 | . . . . . 3 . . . . . . . . 2 4 1 . 2 . 7 2 5 14 5 55 Blast 4 | . . . 1 . . . . . . 1 . . . . . . . . . . . . 1 . 1 Corrupt 3 | . 1 . . . . . . . . . . . . 2 . . . . . . . . . . . Sever 6 | . . . . . . . . . . . 1 . 4 1 . . . . . . . . . . . Detonate 5 | . . . . . . . . . . . . . . . . . . . . . . . 5 . . Melee Attacks 232 | . . . . . 51 36 . 29 4 4 13 3 25 57 2 . . . . . . . . . 8 Impact 8 | . . . . . . . . . . . . . . . . . . . . . . . . . 8 Slashing 217 | . . . . . 51 36 . 29 4 4 13 . 21 57 2 . . . . . . . . . . Piercing 7 | . . . . . . . . . . . . 3 4 . . . . . . . . . . . . Sneak Attacks 29 | . . . . . . 3 . 16 1 . . . . 9 . . . . . . . . . . . Combat Hostiles . | . . . . . . . . . . . . . . . . . . . . . . . . . . Follow-up Attacks 4 | . . . . . . . . . . . 2 . 2 . . . . . . . . . . . . Damage Inflicted 122135 | 148 162 77 1413 . 5094 746 735 1725 1083 2826 1527 218 1666 5985 1333 1114 1729 2214 572 4650 917 6496 73455 1506 4744 Guns 7299 | 148 162 15 630 . 2350 475 603 314 . 162 57 . . 1551 319 348 . . . . . . . . 165 Cannons 98299 | . . . 340 . . 55 132 . 485 1294 451 . 34 1960 1014 766 643 535 572 4584 917 6496 71936 1506 4579 Explosions 11083 | . . 62 443 . 1479 . . 56 494 1137 725 . 1117 1302 . . 1086 1679 . . . . 1503 . . Melee 5236 | . . . . . 1129 216 . 1355 104 233 294 218 515 1172 . . . . . . . . . . . Ramming 82 | . . . . . . . . . . . . . . . . . . . . 66 . . 16 . . Kinetic 36682 | 47 76 . 349 . 1029 317 441 193 295 717 103 . . 1149 1333 962 . . . . . . 23586 1506 4579 Thermal 56434 | 101 . . 621 . 1457 213 294 121 190 577 348 . 34 837 . . 455 391 396 4584 917 6496 38402 . . Explosive 9506 | . . 62 443 . 1479 . . 56 494 1137 725 . 1117 1302 . . 1012 1679 . . . . . . . Electromagnetic 2744 | . 86 15 . . . . . . . 162 57 . . 1525 . 152 262 144 176 . . . . . 165 Impact . | . . . . . . . . . . . . . . . . . . . . . . . . . . Slashing 4957 | . . . . . 1129 216 . 1355 104 233 294 . 454 1172 . . . . . . . . . . . Piercing 279 | . . . . . . . . . . . . 218 61 . . . . . . . . . . . . Entropic 11451 | . . . . . . . . . . . . . . . . . . . . . . . 11451 . . Highest Corruption 26 | . . . 9 . . . . . 4 10 10 6 9 4 4 5 5 . 1 4 . 8 26 1 20 Average Corruption 7 | . . . 6 . . . . . 2 7 8 6 7 3 4 4 5 . 1 2 . 5 14 1 9 Corruption Purged 13 | . . . 9 . . . . . . . 4 . . . . . . . . . . . . . . Corruption Blocked . | . . . . . . . . . . . . . . . . . . . . . . . . . . Effects 433 | . . . 22 . . . . . 1 26 29 5 19 20 27 39 1 . 1 16 . 14 174 1 38 Message Errors 83 | . . . 6 . . . . . . 3 5 1 4 6 6 9 1 . 1 3 . 7 26 . 5 Matter Fused 106 | . . . 6 . . . . . . 4 13 . 4 6 6 10 . . . 3 . 4 44 . 6 Heat Flow Errors 48 | . . . 2 . . . . . . 6 3 . 2 1 3 10 . . . 1 . 1 14 . 5 Energy Discharges 35 | . . . 1 . . . . . . 3 1 2 2 1 4 . . . . . . 1 19 . 1 Parts Rejected 13 | . . . . . . . . . . . . . . 1 . 1 . . . . . . 7 1 3 Parts Fused 5 | . . . 1 . . . . . . . 1 . . . . . . . . . . 1 2 . . Data Loss (minor) 54 | . . . 3 . . . . . 1 5 2 2 3 3 3 7 . . . 5 . . 18 . 2 Data Loss (major) 15 | . . . 1 . . . . . . 1 1 . 1 1 1 . . . . . . . 8 . 1 Misfires 10 | . . . 2 . . . . . . 1 2 . . . 2 2 . . . . . . . . 1 Alerts 10 | . . . . . . . . . . 1 1 . 1 . 1 . . . . 2 . . 3 . 1 Misdirections 22 | . . . . . . . . . . 1 . . . . . . . . . . . . 12 . 9 Weapon Failures 32 | . . . . . . . . . . 1 . . 2 1 1 . . . . 2 . . 21 . 4 Overload Shots . | . . . . . . . . . . . . . . . . . . . . . . . . . . Overflow Damage 23297 | . . 30 33 . 136 81 8 245 54 154 77 73 131 197 67 53 . 48 . 1325 . 2764 17301 146 374 Projectiles 22141 | . . . . . . . 8 . . 78 . . . 54 67 53 . 11 . 1325 . 2764 17261 146 374 Explosions 440 | . . 30 33 . 92 . . . 24 45 77 . 45 17 . . . 37 . . . . 40 . . Melee 716 | . . . . . 44 81 . 245 30 31 . 73 86 126 . . . . . . . . . . . Knockbacks 105 | . . . 1 . . . . . 1 6 1 . . . 5 5 . . . 1 . . 42 5 38 Impact 1 | . . . . . . . . . . . . . . . . . . . . 1 . . . . . Kinetic 95 | . . . 1 . . . . . 1 6 1 . . . 5 4 . . . . . . 38 4 35 Secondary 9 | . . . . . . . . . . . . . . . . 1 . . . . . . 4 1 3 Self-Inflicted Damage 505 | . . . . . 55 . . 80 . . . . 121 138 . . . 111 . . . . . . . Shots 15 | . . . . . 3 . . 1 . . . . 4 4 . . . 3 . . . . . . . Rammed . | . . . . . . . . . . . . . . . . . . . . . . . . . . Targets Rammed 3 | . . . . . . . . . . . . . . . . . . . . 2 . . 1 . . Kicked 3 | . . . . . . . . . . . . . . . . . . . . 2 . . 1 . . Crushed . | . . . . . . . . . . . . . . . . . . . . . . . . . . Highest Temperature 427 | . 150 60 118 . 277 59 261 169 100 294 252 . 225 343 186 251 64 170 246 372 290 264 427 . 187 Average Temperature 84 | . 50 30 30 . 111 19 94 64 42 100 75 . 100 73 88 89 24 53 87 96 95 55 93 . 78 Received Heat Transfer 3012 | . 30 . 165 . 837 117 90 24 111 264 81 . 18 195 27 . 32 86 87 22 12 87 451 23 253 Thermoelectric Energy+ 1066 | . . . . . . . . . . . . . . . . . . . . . . . 1009 . 57 Effects 7 | . . . . . 1 . . . . . . . . 1 . . . . . . . . 5 . . Energy Bleed 1 | . . . . . . . . . . . . . . 1 . . . . . . . . . . . Interference 4 | . . . . . 1 . . . . . . . . . . . . . . . . . 3 . . Short Circuit 2 | . . . . . . . . . . . . . . . . . . . . . . . 2 . . Siege Activations . | . . . . . . . . . . . . . . . . . . . . . . . . . . Martial Activations . | . . . . . . . . . . . . . . . . . . . . . . . . . . Shielding Activations . | . . . . . . . . . . . . . . . . . . . . . . . . . . Robots Disrupted 1 | . . . . . . . . . . . . . . 1 . . . . . . . . . . . Combat Hostiles . | . . . . . . . . . . . . . . . . . . . . . . . . . . Robots Corrupted 9 | . . . . . . . . . . . . . . 8 . . . 1 . . . . . . . Combat Hostiles 9 | . . . . . . . . . . . . . . 8 . . . 1 . . . . . . . Parts Fried 16 | . . . . . . . . . . . 1 . . 10 . . . 1 2 . . . 2 . . Impact Corruptions 5 | . . . . . . . . . . . . . . . . . . . . . . . 5 . . Robots Melted 9 | . . . . . . . . . . . . . . . . . . . . . . . 9 . . Combat Hostiles 9 | . . . . . . . . . . . . . . . . . . . . . . . 9 . . Parts Melted 19 | . . . 2 . . . 1 1 . . 4 . . 2 . . 1 . . . . 1 7 . . Heat Transferred 18351 | 225 . . 782 . 2125 424 560 275 104 800 524 . 50 1366 . . 290 333 148 1221 235 1400 7489 . . Parts Sabotaged 9 | . . . . . . . . . . . . . . . . . . . . . . . 6 . 3 Parts Stolen . | . . . . . . . . . . . . . . . . . . . . . . . . . . Parts Stripped . | . . . . . . . . . . . . . . . . . . . . . . . . . . Power Chain Reactions 1 | . . . . . . . . . . . . . . . . . 1 . . . . . . . . Alert | -11 -10 -10 -10 -8 -8 -7 -7 -7 -5 -5 -5 -5 -4 -4 -4 -4 -4 -3 -3 -3 -2 -2 -2 -1 -1 ------- Run | Yrd Mat Min Sub Mat Gar Fac Sto Rec Fac Upp Upp Zhi Pro Fac Upp Upp War Pro Res Tes Res Qua Frg Acc Com Maximum Alert Level 5 | . . . . . 4 2 . . 1 . . . . 3 . . . . 1 1 1 2 5 5 5 Low Security (%) 42 | 100 100 100 . 100 14 20 100 100 83 . . . . . . . . . 87 67 57 51 . . . Level 1 10 | . . . . . 9 8 . . 16 . . . . 4 . . . . 12 32 42 26 10 . . Level 2 16 | . . . . . 32 71 . . . . . . . 67 . . . . . . . 22 7 . . Level 3 9 | . . . . . 41 . . . . . . . . 27 . . . . . . . . 16 . . Level 4 3 | . . . . . 2 . . . . . . . . . . . . . . . . . 14 . . Level 5 13 | . . . . . . . . . . . . . . . . . . . . . . . 38 100 67 High Security 4 | . . . . . . . . . . . . . . . . . . . . . . . 13 . 32 Max Security . | . . . . . . . . . . . . . . . . . . . . . . . . . . Sterilizations 1 | . . . . . . 1 . . . . . . . . . . . . . . . . . . . Peak Influence 5113 | 15 88 103 . 15 1104 579 134 70 227 . . . . 954 . . . . 216 351 319 494 5113 3105 3070 Initial 3061 | . . 4 . . . 579 78 40 200 . . . . 450 . . . . . 103 189 11 252 3061 1980 Average 805 | 2 24 30 . 1 598 377 96 5 161 . . . . 610 . . . . 77 160 172 239 2150 3045 2375 Influence Increases 16424 | 20 186 113 160 15 1184 372 126 300 403 410 340 5 335 2188 110 185 261 320 334 652 253 773 5593 267 1519 Destroy 0b10 Robot/C 8120 | . 80 60 100 . 620 120 60 20 80 320 300 . 280 880 100 120 180 260 80 320 60 340 3020 80 640 Destroy 0b10 Robot/NC 445 | 20 5 . . . 25 15 25 90 10 10 . 5 15 65 . . 10 5 . 25 5 5 100 . 10 Destroy Leader 1120 | . 22 10 . . 40 50 36 . 20 50 40 . 40 222 10 20 . 40 10 34 12 62 292 20 90 Allied During Kill 101 | . . . . . . . . . . . . . . 45 . . 56 . . . . . . . . Successful Hack 251 | . 24 . . 15 7 38 4 42 14 . . . . 4 . . . . 13 11 8 12 30 29 . Select Force Hacks 150 | . 30 . . . . . . 120 . . . . . . . . . . . . . . . . . Disable Machine 810 | . 15 . . . 15 15 . 15 . . . . . 105 . . . . 15 90 30 105 285 30 90 Anti-Garrison Action 600 | . . . . . 400 . . . . . . . . . . . . . . . . . 200 . . Destroy Structure 2092 | . 10 13 . . 62 29 1 13 34 . . . . 252 . . . . 36 22 33 84 1261 93 149 Advance Influence 650 | . . . . . . . . . 200 . . . . 450 . . . . . . . . . . . Partial Spotted 315 | . . . . . 15 . . . . . . . . 15 . . . . 30 30 90 30 60 15 30 Lose Combat Pursuer 1770 | . . 30 60 . . 105 . . 45 30 . . . 150 . 45 15 15 150 120 15 135 345 . 510 Influence Decreases 13355 | 20 174 125 160 15 80 1303 195 404 296 351 362 149 335 1238 882 363 108 473 150 499 570 344 939 2276 1544 Entered New Map 5039 | . . 8 . . . 525 95 64 . 41 32 144 . . 352 34 . 153 . 81 148 9 197 2042 1114 Time Decay 6862 | 20 174 117 157 15 . 478 90 340 286 280 310 5 305 568 530 329 48 309 150 398 422 335 712 214 270 Search Patrol Dispatched 100 | . . . . . . . . . . . . . . 100 . . . . . . . . . . . Lost Part 393 | . . . 3 . 40 . 10 . 10 30 20 . 30 20 . . . 10 . 20 . . 30 10 160 Lost Ally 211 | . . . . . 40 . . . . . . . . 100 . . 60 1 . . . . . 10 . Purge Threat 750 | . . . . . . 300 . . . . . . . 450 . . . . . . . . . . . Squads Dispatched 106 | . 4 . . . . 9 . . 1 . . . . 18 . . . . 1 2 1 11 38 7 14 Investigation 6 | . 2 . . . . . . . . . . . . 1 . . . . . . . 1 1 1 . Extermination 21 | . . . . . . 2 . . . . . . . 4 . . . . 1 2 . 3 6 2 1 Reinforcement 24 | . 2 . . . . 2 . . 1 . . . . 8 . . . . . . 1 7 1 2 . Assault 49 | . . . . . . 2 . . . . . . . 2 . . . . . . . . 30 2 13 Garrison 6 | . . . . . . 3 . . . . . . . 3 . . . . . . . . . . . Intercept . | . . . . . . . . . . . . . . . . . . . . . . . . . . Searches Triggered 1 | . . . . . . . . . . . . . . 1 . . . . . . . . . . . Unchained Authorized 3 | . . . . . . . 1 . 1 1 . . . . . . . . . . . . . . . Construction Impeded 3 | . . . . . . . . . . . . . . 3 . . . . . . . . . . . Haulers Reinforced . | . . . . . . . . . . . . . . . . . . . . . . . . . . Active Scanning Responses . | . . . . . . . . . . . . . . . . . . . . . . . . . . Cargo Convoy Interrupts . | . . . . . . . . . . . . . . . . . . . . . . . . . . Stealth | -11 -10 -10 -10 -8 -8 -7 -7 -7 -5 -5 -5 -5 -4 -4 -4 -4 -4 -3 -3 -3 -2 -2 -2 -1 -1 --------- Run | Yrd Mat Min Sub Mat Gar Fac Sto Rec Fac Upp Upp Zhi Pro Fac Upp Upp War Pro Res Tes Res Qua Frg Acc Com Distress Signals 27 | . . . . . . 3 1 2 1 . . . . 6 . . . . . 4 3 4 2 1 . Communications Jammed 161 | . . . . . . . . . . . . . . . . . . . . 3 24 35 99 . . Distress Signals 159 | . . . . . . . . . . . . . . . . . . . . 1 24 35 99 . . Times Spotted 905 | . 8 4 15 . 31 14 5 2 10 17 15 . 21 81 9 9 33 15 18 29 16 58 240 52 203 Peak Tracking Total 91 | . 3 3 4 . 7 5 3 1 5 5 5 . 10 9 4 3 10 5 6 8 5 9 20 11 91 Tactical Retreats 94 | . . 1 2 . . 3 . . 3 2 . . . 13 . 3 1 1 3 4 1 12 19 8 18 ECM-based Alert Blocks 174 | . . . . . . . . . . . . . . 16 . . . . . . . 25 44 40 49 Traps | -11 -10 -10 -10 -8 -8 -7 -7 -7 -5 -5 -5 -5 -4 -4 -4 -4 -4 -3 -3 -3 -2 -2 -2 -1 -1 ------- Run | Yrd Mat Min Sub Mat Gar Fac Sto Rec Fac Upp Upp Zhi Pro Fac Upp Upp War Pro Res Tes Res Qua Frg Acc Com Traps Triggered 24 | . . . . . 6 . . . 4 . . . . . . . . . . . . . 14 . . Indirectly . | . . . . . . . . . . . . . . . . . . . . . . . . . . Trap Hack Attempts . | . . . . . . . . . . . . . . . . . . . . . . . . . . Triggered . | . . . . . . . . . . . . . . . . . . . . . . . . . . Disarmed . | . . . . . . . . . . . . . . . . . . . . . . . . . . Reprogrammed . | . . . . . . . . . . . . . . . . . . . . . . . . . . Reused . | . . . . . . . . . . . . . . . . . . . . . . . . . . Traps Extracted . | . . . . . . . . . . . . . . . . . . . . . . . . . . Installed . | . . . . . . . . . . . . . . . . . . . . . . . . . . Triggered . | . . . . . . . . . . . . . . . . . . . . . . . . . . Machines | -11 -10 -10 -10 -8 -8 -7 -7 -7 -5 -5 -5 -5 -4 -4 -4 -4 -4 -3 -3 -3 -2 -2 -2 -1 -1 ---------- Run | Yrd Mat Min Sub Mat Gar Fac Sto Rec Fac Upp Upp Zhi Pro Fac Upp Upp War Pro Res Tes Res Qua Frg Acc Com Machines Disabled 74 | . 1 . 4 . 6 1 . 1 . . . . . 7 . . 1 . 1 6 2 7 29 2 6 Max in Single Turn 2 | . 1 . 2 . 1 1 . 1 . . . . . 1 . . 1 . 1 1 1 1 2 1 2 Garrison Access 5 | . . . . . . 2 . . . . . . . 1 . . . . . . 1 . 1 . . Garrison Relay 5 | . . . . . 5 . . . . . . . . . . . . . . . . . . . . Machines Repaired . | . . . . . . . . . . . . . . . . . . . . . . . . . . Machines Dismantled . | . . . . . . . . . . . . . . . . . . . . . . . . . . Machines Sabotaged . | . . . . . . . . . . . . . . . . . . . . . . . . . . Overloaded Fab Kills . | . . . . . . . . . . . . . . . . . . . . . . . . . . Hacking | -11 -10 -10 -10 -8 -8 -7 -7 -7 -5 -5 -5 -5 -4 -4 -4 -4 -4 -3 -3 -3 -2 -2 -2 -1 -1 --------- Run | Yrd Mat Min Sub Mat Gar Fac Sto Rec Fac Upp Upp Zhi Pro Fac Upp Upp War Pro Res Tes Res Qua Frg Acc Com Machines Accessed 91 | . 5 . 3 3 4 6 3 12 2 1 . 4 1 12 1 1 1 . 4 7 2 4 9 4 2 Terminals 58 | . 4 . . 2 4 5 3 6 2 . . . 1 5 . . . . 3 6 2 3 6 4 2 Fabricators 3 | . . . . . . . . . . . . . . 2 . . . . 1 . . . . . . Repair Stations . | . . . . . . . . . . . . . . . . . . . . . . . . . . Recycling Units 8 | . 1 . . . . . . 5 . . . . . 2 . . . . . . . . . . . Scanalyzers 6 | . . . . . . . . . . . . . . 2 . . . . . 1 . 1 2 . . Garrison Access 4 | . . . . 1 . 1 . . . . . . . 1 . . . . . . . . 1 . . Total Hacks 215 | . 12 . 7 10 10 15 6 19 3 1 . 17 1 35 1 1 1 . 8 20 4 9 23 10 2 Successful 120 | . 4 . 7 6 1 8 2 16 1 1 . 17 1 21 1 1 1 . 2 10 1 3 10 6 . Failed 95 | . 8 . . 4 9 7 4 3 2 . . . . 14 . . . . 6 10 3 6 13 4 2 Catastrophic 19 | . 1 . . . 3 1 1 . . . . . . 3 . . . . 2 2 . 1 2 1 2 Database Lockouts . | . . . . . . . . . . . . . . . . . . . . . . . . . . Manual 93 | . 12 . . 6 . 8 7 13 . . . . . 8 . . . . 8 9 4 1 9 6 2 Terminals 135 | . 11 . . 8 10 14 6 11 3 . . . 1 19 . . . . 6 13 4 6 11 10 2 Fabricators 6 | . . . . . . . . . . . . . . 4 . . . . 2 . . . . . . Repair Stations . | . . . . . . . . . . . . . . . . . . . . . . . . . . Recycling Units 11 | . 1 . . . . . . 6 . . . . . 4 . . . . . . . . . . . Scanalyzers 27 | . . . . . . . . . . . . . . 6 . . . . . 7 . 3 11 . . Garrison Access 6 | . . . . 2 . 1 . . . . . . . 2 . . . . . . . . 1 . . Terminal Hacks 57 | . . . 7 1 1 4 . 4 1 1 . 17 1 8 1 1 1 . 1 3 1 . 2 2 . Record 12 | . . . 5 . . . . . . . . 5 1 . . . . . . . . . 1 . . Part Schematic 5 | . . . . . . . . . . . . 4 . . . . . . . 1 . . . . . Robot Analysis 4 | . . . . . . . . . . . . 4 . . . . . . . . . . . . . Prototype ID Bank 6 | . . . . . . . . 2 . . . 4 . . . . . . . . . . . . . Open Door 6 | . . . 1 . 1 . . . . 1 . . . . 1 1 1 . . . . . . . . Branch Access Points 2 | . . . . . . . . . . . . . . . . . . . 1 . 1 . . . . Machine Index 1 | . . . . . . . . . . . . . . . . . . . . . . . . 1 . Alert Level 4 | . . . . . . 1 . . . . . . . 1 . . . . . 1 . . . 1 . Unreport Threat 5 | . . . . . . 2 . . . . . . . 3 . . . . . . . . . . . Locate Traps 2 | . . . . . . . . . . . . . . 2 . . . . . . . . . . . Extermination Status 1 | . . . . . . . . . . . . . . 1 . . . . . . . . . . . Recall Extermination 1 | . . . . . . . . . . . . . . 1 . . . . . . . . . . . Hauler Manifests 1 | . . . . 1 . . . . . . . . . . . . . . . . . . . . . Zone Layout 3 | . . . . . . 1 . . 1 . . . . . . . . . . 1 . . . . . Proto ID Catalog 1 | . . . . . . . . . . . . . . . . . . . . . . . 1 . . Release Object 3 | . . . 1 . . . . 2 . . . . . . . . . . . . . . . . . Fabricator Hacks 1 | . . . . . . . . . . . . . . 1 . . . . . . . . . . . Network Status 1 | . . . . . . . . . . . . . . 1 . . . . . . . . . . . Repair Station Hacks . | . . . . . . . . . . . . . . . . . . . . . . . . . . Recycling Unit Hacks 3 | . . . . . . . . 1 . . . . . 2 . . . . . . . . . . . Retrieve Components 3 | . . . . . . . . 1 . . . . . 2 . . . . . . . . . . . Scanalyzer 15 | . . . . . . . . . . . . . . 4 . . . . . 4 . 2 5 . . Insert Component 9 | . . . . . . . . . . . . . . 3 . . . . . 2 . 1 3 . . Analyze 5 | . . . . . . . . . . . . . . 1 . . . . . 2 . . 2 . . Retrieve Study 1 | . . . . . . . . . . . . . . . . . . . . . . 1 . . . Garrison Access Hacks 2 | . . . . 1 . . . . . . . . . 1 . . . . . . . . . . . Unlock Access 1 | . . . . 1 . . . . . . . . . . . . . . . . . . . . . Seal Access 1 | . . . . . . . . . . . . . . 1 . . . . . . . . . . . Unauthorized Hacks 42 | . 4 . . 4 . 4 2 11 . . . . . 5 . . . . 1 3 . 1 3 4 . Terminals 30 | . 3 . . 4 . 4 2 6 . . . . . 2 . . . . 1 2 . 1 1 4 . Track 4 | . . . . . . 2 . . . . . . . . . . . . . . . . 1 1 . Assimilate 3 | . . . . . . . . . . . . . . 1 . . . . . . . 1 . 1 . Botnet 11 | . 2 . . 1 . 1 1 1 . . . . . 1 . . . . 1 1 . . . 2 . Operators 4 | . 1 . . 1 . 1 . . . . . . . . . . . . . 1 . . . . . Skim 8 | . . . . 2 . . 1 5 . . . . . . . . . . . . . . . . . Fabricators 3 | . . . . . . . . . . . . . . 3 . . . . . . . . . . . Liberate 2 | . . . . . . . . . . . . . . 2 . . . . . . . . . . . Haulers 1 | . . . . . . . . . . . . . . 1 . . . . . . . . . . . Repair Stations . | . . . . . . . . . . . . . . . . . . . . . . . . . . Recycling Units 6 | . 1 . . . . . . 5 . . . . . . . . . . . . . . . . . Reject 1 | . . . . . . . . 1 . . . . . . . . . . . . . . . . . Tunnel 5 | . 1 . . . . . . 4 . . . . . . . . . . . . . . . . . Scanalyzers 2 | . . . . . . . . . . . . . . . . . . . . 1 . . 1 . . Researchers 2 | . . . . . . . . . . . . . . . . . . . . 1 . . 1 . . Garrison Access 1 | . . . . . . . . . . . . . . . . . . . . . . . 1 . . Jam 1 | . . . . . . . . . . . . . . . . . . . . . . . 1 . . Data Cores Recovered 2 | . . . . . . . 1 . . . . . . . . . . . . . . 1 . . . Used . | . . . . . . . . . . . . . . . . . . . . . . . . . . Hacking Detections 59 | . 4 . . 1 4 6 3 5 1 . . . . 9 . . . . 4 5 2 4 5 4 2 Full Trace Events 4 | . 1 . . . 1 . . . . . . . . 1 . . . . . . . . . 1 . Feedback Events . | . . . . . . . . . . . . . . . . . . . . . . . . . . Feedback Blocked . | . . . . . . . . . . . . . . . . . . . . . . . . . . Robot Schematics Acquired 4 | . . . . . . . . . . . . . . . . . . . . . . 3 1 . . Robots Built . | . . . . . . . . . . . . . . . . . . . . . . . . . . Authchips . | . . . . . . . . . . . . . . . . . . . . . . . . . . Time . | . . . . . . . . . . . . . . . . . . . . . . . . . . Total Robot Build Rating . | . . . . . . . . . . . . . . . . . . . . . . . . . . Part Schematics Acquired 23 | . . . . . . . . . . . . 4 . 1 . . . . . 2 . 12 4 . . Parts Built . | . . . . . . . . . . . . . . . . . . . . . . . . . . Authchips . | . . . . . . . . . . . . . . . . . . . . . . . . . . Time . | . . . . . . . . . . . . . . . . . . . . . . . . . . Total Part Build Rating . | . . . . . . . . . . . . . . . . . . . . . . . . . . Part Studies Acquired 1 | . . . . . . . . . . . . . . . . . . . . . . 1 . . . Parts Repaired . | . . . . . . . . . . . . . . . . . . . . . . . . . . Time . | . . . . . . . . . . . . . . . . . . . . . . . . . . Parts Recycled . | . . . . . . . . . . . . . . . . . . . . . . . . . . Recycled Matter . | . . . . . . . . . . . . . . . . . . . . . . . . . . Retrieved Matter . | . . . . . . . . . . . . . . . . . . . . . . . . . . Retrieved Components 7 | . . . . . . . . 5 . . . . . 2 . . . . . . . . . . . Parts Scanalyzed 4 | . . . . . . . . . . . . . . 1 . . . . . 2 . . 1 . . Part Schematics Acquired 4 | . . . . . . . . . . . . . . 1 . . . . . 1 . . 2 . . Parts Damaged . | . . . . . . . . . . . . . . . . . . . . . . . . . . Bothacking | -11 -10 -10 -10 -8 -8 -7 -7 -7 -5 -5 -5 -5 -4 -4 -4 -4 -4 -3 -3 -3 -2 -2 -2 -1 -1 ------------ Run | Yrd Mat Min Sub Mat Gar Fac Sto Rec Fac Upp Upp Zhi Pro Fac Upp Upp War Pro Res Tes Res Qua Frg Acc Com Used RIF Installer . | . . . . . . . . . . . . . . . . . . . . . . . . . . Robots Hacked . | . . . . . . . . . . . . . . . . . . . . . . . . . . Non-combat . | . . . . . . . . . . . . . . . . . . . . . . . . . . Combat . | . . . . . . . . . . . . . . . . . . . . . . . . . . Robot Hacks Applied . | . . . . . . . . . . . . . . . . . . . . . . . . . . Relay Couplers Released 24 | . . . . . 21 2 . . . . . . . . . . . . . . 1 . . . . Machine Destruction 24 | . . . . . 21 2 . . . . . . . . . . . . . . 1 . . . . Fabnet Peak Effective % . | . . . . . . . . . . . . . . . . . . . . . . . . . . Robots Rewired 5 | . . . . . . . . . . . . . . . . . 5 . . . . . . . . Allies Hacked 2 | . . . . . . . . . . . . . . 2 . . . . . . . . . . . Hacks Repelled . | . . . . . . . . . . . . . . . . . . . . . . . . . . Allies | -11 -10 -10 -10 -8 -8 -7 -7 -7 -5 -5 -5 -5 -4 -4 -4 -4 -4 -3 -3 -3 -2 -2 -2 -1 -1 -------- Run | Yrd Mat Min Sub Mat Gar Fac Sto Rec Fac Upp Upp Zhi Pro Fac Upp Upp War Pro Res Tes Res Qua Frg Acc Com Total Allies 14 | . . . . . 2 . . . . . . . . 6 . . 5 . . . . . . 1 . Largest Group 5 | . . . . . 2 . . . . . . . . 3 . . 5 2 . . . . . 1 . Highest-Rated Group 258 | . . . . . 56 . . . . . . . . 141 . . 258 113 . . . . . 45 . Highest-Rated Ally 64 | . . . . . 31 . . . . . . . . 47 . . 64 64 . . . . . 45 . Initial Warlord ECA Mod 6 | . . . . . . 6 6 6 4 4 4 4 3 3 3 3 3 2 2 2 1 1 1 . . Total Orders 3 | . . . . . . . . . . . . . . . . . . 3 . . . . . . . STAY 2 | . . . . . . . . . . . . . . . . . . 2 . . . . . . . FOLLOW 1 | . . . . . . . . . . . . . . . . . . 1 . . . . . . . Ally Attacks 93 | . . . . . 4 . . . . . . . . 40 . . 48 1 . . . . . . . Total Damage 2574 | . . . . . 63 . . . . . . . . 884 . . 1563 64 . . . . . . . Kills 10 | . . . . . . . . . . . . . . 6 . . 4 . . . . . . . . Allies Corrupted . | . . . . . . . . . . . . . . . . . . . . . . . . . . Allies Melted 1 | . . . . . . . . . . . . . . . . . 1 . . . . . . . . Intel | -11 -10 -10 -10 -8 -8 -7 -7 -7 -5 -5 -5 -5 -4 -4 -4 -4 -4 -3 -3 -3 -2 -2 -2 -1 -1 ------- Run | Yrd Mat Min Sub Mat Gar Fac Sto Rec Fac Upp Upp Zhi Pro Fac Upp Upp War Pro Res Tes Res Qua Frg Acc Com Active Infowar (turns) 22573 | 49 717 408 4046 288 . 985 11 . 508 522 591 235 737 1074 1351 1312 792 1372 357 929 1034 799 3182 459 815 Optics 4688 | . . . . . . . . . . . . . . . . . . . . . 1034 799 2477 . 378 Sensors 3048 | . . . . . . . . . . . . . . 1 1117 1293 637 . . . . . . . . Terrain 3859 | . . . . . . . . . . . . . . . . . 312 1368 352 300 1000 279 248 . . Structural 8914 | . 66 95 1614 . . 288 . . 507 519 526 41 730 836 1349 1308 376 659 . . . . . . . Seismic 5162 | 49 651 313 2432 288 . 980 11 . 233 205 . . . . . . . . . . . . . . . Cloaking 2176 | . . . . . . . . . . . 355 235 7 . . . . . . . . . 731 435 413 Jamming 5125 | . . . . . . . . . . . . . . . . . . . 223 886 1006 799 2160 . 51 ECM 1342 | . . . . . . . . . . . . . . 237 . . . . . . . 270 294 245 296 Robot Analysis Total 4 | . . . . . . . . . . . . 4 . . . . . . . . . . . . . Derelict Logs Recovered 10 | . . 1 2 . . . . . . . 1 . 3 . 2 1 . . . . . . . . . Drone Launches . | . . . . . . . . . . . . . . . . . . . . . . . . . . Drone Recoveries . | . . . . . . . . . . . . . . . . . . . . . . . . . . Exploration | -11 -10 -10 -10 -8 -8 -7 -7 -7 -5 -5 -5 -5 -4 -4 -4 -4 -4 -3 -3 -3 -2 -2 -2 -1 -1 ------------- Run | Yrd Mat Min Sub Mat Gar Fac Sto Rec Fac Upp Upp Zhi Pro Fac Upp Upp War Pro Res Tes Res Qua Frg Acc Com Turns Passed 31933 | 155 717 408 5838 289 1733 1230 186 3012 623 651 697 236 762 1718 1487 1416 1064 1499 390 942 1034 799 3716 459 872 Spaces Moved 24166 | 70 345 201 3883 119 733 730 108 1908 376 407 831 153 848 1394 896 905 556 1002 638 1030 1056 821 3583 646 927 Core 3 | 3 . . . . . . . . . . . . . . . . . . . . . . . . . Treads 4220 | 67 345 201 1149 . 12 . . 388 376 306 470 . . 878 . . . . 28 . . . . . . Legs 5748 | . . . . . . . . . . . 361 127 . 220 896 905 556 1002 10 745 517 1 408 . . Wheels 5932 | . . . 2734 119 721 730 108 1520 . . . . . . . . . . . . . . . . . Hover 4764 | . . . . . . . . . . 101 . 26 848 296 . . . . . . 539 820 618 589 927 Flight 3499 | . . . . . . . . . . . . . . . . . . . 600 285 . . 2557 57 . Fastest Speed 29 | 50 160 160 120 230 145 115 115 115 137 65 65 65 65 65 98 138 123 123 41 29 29 52 38 40 40 Average Speed 96 | 155 160 160 137 230 159 126 115 130 143 111 65 67 66 76 135 139 146 123 46 37 41 52 55 49 40 Slowest Speed 240 | 160 160 160 230 230 240 145 115 162 152 152 65 80 80 134 138 156 171 156 171 74 83 68 98 111 46 Overloaded Moves 305 | . . . . . . . . . . . . . . . . . . . . . . . 305 . . Propulsion Burnouts . | . . . . . . . . . . . . . . . . . . . . . . . . . . Robots Hopped 17 | . . . . . . . . . . . . . . . . . . . 2 3 . . 12 . . Potential Cave-ins 18 | . . . 5 . . . . . . 2 . . . . . . . . . . . . 11 . . Cave-ins Triggered 3 | . . . 2 . . . . . . . . . . . . . . . . . . . 1 . . Teleports 9 | . . . . . . . . . . . . . . . . . . . . . . . 1 . 8 Exploration Rate (%) 56 | 3 71 35 71 11 70 26 34 98 15 57 97 60 96 43 95 97 71 94 20 93 33 91 41 19 28 Regions Visited 25 Branch Regions 16 Pre-discovered Areas 14 | . 1 1 . . . . . 7 . 1 . 3 . . . 1 . . . . . . . . . Known Exits Taken 9 | . . . . 1 . 1 . . 1 1 . . 1 1 1 . . . 1 . 1 . . . . Unknown Exits Taken 15 | 1 1 1 1 . . . 1 1 . . 1 1 . . . 1 1 1 . 1 . 1 1 1 . Scrap Searched 20 | . . . 5 . . . . . . 3 4 . 1 . 3 3 . 1 . . . . . . . Spaces Dug 476 | . 7 14 69 . 31 25 . 3 5 11 28 . 53 67 3 1 . 61 12 10 9 18 12 27 10 Terrain Destroyed 1263 | . 13 14 171 . 58 29 1 12 17 80 54 . 107 119 35 17 31 155 20 10 11 29 181 50 49 Melee 86 | . . . . . 7 25 . 3 2 . 2 . 8 33 2 . . . . . . . . . 4 Projectile 498 | . 13 . 13 . 1 4 1 . 7 27 2 . 3 31 33 17 2 21 20 10 11 29 175 49 29 AOE 662 | . . 14 158 . 50 . . 9 8 53 50 . 96 55 . . 29 134 . . . . 6 . . Terrain Rammed . | . . . . . . . . . . . . . . . . . . . . . . . . . . Walls Destroyed . | . . . . . . . . . . . . . . . . . . . . . . . . . . Machines Disabled . | . . . . . . . . . . . . . . . . . . . . . . . . . . Actions | -11 -10 -10 -10 -8 -8 -7 -7 -7 -5 -5 -5 -5 -4 -4 -4 -4 -4 -3 -3 -3 -2 -2 -2 -1 -1 --------- Run | Yrd Mat Min Sub Mat Gar Fac Sto Rec Fac Upp Upp Zhi Pro Fac Upp Upp War Pro Res Tes Res Qua Frg Acc Com Total 30533 | 94 432 281 4287 134 1028 941 138 2369 428 529 942 280 989 1797 1118 1017 787 1207 697 1529 1625 1060 4836 742 1246 Wait 3405 | . 20 74 182 . 33 79 3 400 5 51 47 108 77 97 166 68 146 127 15 325 524 87 606 42 123 Move 24105 | 69 344 200 3880 119 732 729 107 1907 375 406 830 152 847 1393 895 904 555 1001 633 1023 1055 820 3558 645 926 Hop 15 | . . . . . . . . . . . . . . . . . . . 2 3 . . 10 . . Pick Up 310 | 8 12 . 39 6 5 22 8 1 6 3 4 5 1 34 2 3 15 4 4 33 6 20 48 5 16 Fast Attach 93 | 7 . . 5 1 4 2 . 1 . 2 3 1 2 7 2 2 4 4 4 8 2 2 19 1 10 Attach 104 | . . . 4 3 5 7 1 1 5 2 3 3 5 16 3 3 . 1 . 4 2 1 14 5 16 Detach 60 | . . . 3 . 4 . . 2 1 . 5 1 6 12 1 2 3 . . 2 . 1 9 2 6 Swap 552 | 1 19 4 61 2 29 27 4 8 6 14 21 4 11 49 16 13 10 22 5 35 6 38 95 16 36 Drop 320 | . 8 . 42 3 10 17 2 15 2 7 3 3 2 32 6 4 17 7 9 38 9 22 48 2 12 Fire 1244 | 9 29 3 69 . 116 21 13 5 16 40 16 . 17 101 25 18 12 41 25 54 21 69 407 24 93 Melee 224 | . . . . . 51 36 . 29 4 4 10 3 21 56 2 . . . . . . . . . 8 Ram . | . . . . . . . . . . . . . . . . . . . . . . . . . . Kick 3 | . . . . . . . . . . . . . . . . . . . . 2 . . 1 . . Crush . | . . . . . . . . . . . . . . . . . . . . . . . . . . Escape Stasis 70 | . . . 2 . 39 . . . 8 . . . . . . . . . . . . . 21 . . Rewire 25 | . . . . . . . . . . . . . . . . . 25 . . . . . . . . Trap . | . . . . . . . . . . . . . . . . . . . . . . . . . . Miscellaneous 3 | . . . . . . 1 . . . . . . . . . . . . . 2 . . . . . Route ------- -11/Scrapyard -10/Materials (discovered 3 exits: [*Mat] / [*Min x2]) -10/Mines (discovered 3 exits: [*Mat] / [*Exi] / *Sub) -10/Subcaves (discovered 3 exits: *Mat x2 / *Rec) -8/Materials (discovered 4 exits: Fac x3 / Gar) -8/Garrison (discovered 4 exits: *Fac x3 / [*Mat]) -7/Factory -7/Storage -7/Recycling -5/Factory (discovered 4 exits: Fac x2 / *Upp x2) -5/Upper Caves -5/Upper Caves (discovered 2 exits: *Fac / *Zhi) -5/Zhirov -4/Proximity Caves -4/Factory -4/Upper Caves -4/Upper Caves (discovered 2 exits: *Res / *War) -4/Warlord -3/Proximity Caves -3/Research (discovered 4 exits: *Res / Arm / *Tes x2) -3/Testing -2/Research (discovered 4 exits: *Acc x2 / *Qua x2) -2/Quarantine (discovered 3 exits: *Acc / [*Sec] / *Frg) -2/Protoforge -1/Access -1/Command To Epsilon Eridani History --------- Turn | Location | Event 28 | -11/Scrapyard | Discovered new exit (range 15) 156 | -11/Scrapyard | Entered Materials 284 | -10/Materials | Discovered new exit (range 11) 316 | -10/Materials | Build established: Mutant 463 | -10/Materials | Discovered new exit (range 5) 820 | -10/Materials | Discovered new exit (range 7) 873 | -10/Materials | Entered Mines 942 | -10/Mines | Learned location of Storage (-7) 988 | -10/Mines | Deemed a non-threat by the Exiles lab entrance 988 | -10/Mines | Discovered new exit (range 5) 1022 | -10/Mines | Discovered new exit (range 9) 1026 | -10/Mines | Assembled infested the area 1132 | -10/Mines | Met 8R-AWN 1278 | -10/Mines | Discovered new exit (range 3) 1281 | -10/Mines | Entered Subcaves 1295 | -10/Subcaves | Shifting Twisted Machinery released Battle Cannon 1296 | -10/Subcaves | Shifting Twisted Machinery released Scrap Shield 1844 | -10/Subcaves | Learned 8 Materials zone layouts 2024 | -10/Subcaves | Visited Clippyterm 2028 | -10/Subcaves | Learned Factory trap positions 2053 | -10/Subcaves | A swath of the cavern ceiling suddenly collapsed 2571 | -10/Subcaves | Discovered new exit (range 9) 3260 | -10/Subcaves | Discovered new exit (range 8) 3308 | -10/Subcaves | Discovered new exit (range 15) 5649 | -10/Subcaves | Crushed by falling debris 5650 | -10/Subcaves | Core integrity fell below 50% 5650 | -10/Subcaves | Crushed by falling debris 5680 | -10/Subcaves | Lost 3 parts (1p1u1w) 5995 | -10/Subcaves | Build established: Scavenger-Mutant 6815 | -10/Subcaves | Build established: Hauler-Mutant 6910 | -10/Subcaves | Found SUBCON Basin 7119 | -10/Subcaves | Entered Materials 7119 | -8/Materials | Evolved 4 slots: Propulsion x2, Utility x2 7120 | -8/Materials | Identified exit to Factory 7407 | -8/Materials | Identified exit to Garrison 7408 | -8/Materials | Entered Garrison 7472 | -8/Garrison | Triggered checkpoint 7531 | -8/Garrison | Garrison Relay disabled 7645 | -8/Garrison | Triggered checkpoint 7703 | -8/Garrison | Destroyed 8 combat bots 7918 | -8/Garrison | Triggered checkpoint 7933 | -8/Garrison | Garrison Relay disabled 7994 | -8/Garrison | Discovered exit to Factory (range 10) 8036 | -8/Garrison | Triggered checkpoint 8068 | -8/Garrison | Garrison Relay disabled 8604 | -8/Garrison | Discovered exit to Factory (range 13) 8617 | -8/Garrison | Rescued a captive Derelict 8618 | -8/Garrison | Rescued a captive Derelict 8644 | -8/Garrison | Triggered checkpoint 8743 | -8/Garrison | Garrison Relay disabled 8836 | -8/Garrison | Triggered checkpoint 8936 | -8/Garrison | Triggered checkpoint 8970 | -8/Garrison | Garrison Relay disabled 9028 | -8/Garrison | Discovered exit to Factory (range 14) 9036 | -8/Garrison | Triggered checkpoint 9064 | -8/Garrison | Core integrity fell below 50% 9104 | -8/Garrison | Discovered new exit (range 6) 9141 | -8/Garrison | Entered Factory 9141 | -7/Factory | Evolved 2 slots: Propulsion x1, Weapon x1 9142 | -7/Factory | Identified exit to Storage 9143 | -7/Factory | Loaded intel: 95 trap records 9627 | -7/Factory | Released subatomizers from SUBCON Basin 10094 | -7/Factory | Garrison activated, responded to threat 10230 | -7/Factory | Sterilization system engaged 10230 | -7/Factory | Non-combat units ordered to evacuate 10330 | -7/Factory | Combat units ordered to evacuate 10371 | -7/Factory | Entered Storage 10534 | -7/Storage | Unchained authorized (BL-1NK) 10553 | -7/Storage | Used back door to open Recycling access 10553 | -7/Storage | Discovered new exit (range 5) 10557 | -7/Storage | Entered Recycling 10558 | -7/Recycling | Joined Warlord attack on 0b10 via Recycling 10611 | -7/Recycling | Build established: Gunner 11017 | -7/Recycling | Discovered new exit (range 14) 11178 | -7/Recycling | Learned location of Zion (-7) 11213 | -7/Recycling | Learned location of Archives (-6) 11253 | -7/Recycling | Learned 4 Proximity Caves zone layouts 11261 | -7/Recycling | Learned Factory stockpile data 11313 | -7/Recycling | Learned location of 1 exit from Hub_04(d) 11451 | -7/Recycling | Build established: Mutant 11455 | -7/Recycling | Entered Scraplab 11459 | -7/Recycling | Found Prototype Device 11459 | -7/Recycling | Identified Scrap Engine 12161 | -7/Recycling | Build established: Construct 13569 | -7/Recycling | Entered Factory 13569 | -5/Factory | Evolved 4 slots: Power x1, Utility x3 13570 | -5/Factory | Identified exit to Factory 13570 | -5/Factory | Identified exit to Upper Caves 13744 | -5/Factory | Unchained authorized (BL-1NK) 14192 | -5/Factory | Entered Upper Caves 14193 | -5/Upper Caves | Identified exit to Upper Caves 14231 | -5/Upper Caves | Met a Warlord Commander 14232 | -5/Upper Caves | Learned location of Warlord (-4) 14233 | -5/Upper Caves | Warlord Commander delivered Encrypted Comm Array 14234 | -5/Upper Caves | Found Encrypted Comm Array 14317 | -5/Upper Caves | Spotted B-75 Beast 14343 | -5/Upper Caves | Destroyed B-75 Beast 14392 | -5/Upper Caves | Unchained authorized (BL-1NK) 14498 | -5/Upper Caves | Destroyed 10 combat bots 14499 | -5/Upper Caves | System corruption reached 10% 14843 | -5/Upper Caves | Entered another Upper Caves area 14990 | -5/Upper Caves | Discovered exit to Factory (range 12) 15083 | -5/Upper Caves | Attracted the attention of an 0b10 checkpoint 15122 | -5/Upper Caves | Learned location of 1 exit from Factory 15260 | -5/Upper Caves | Build established: Mutant 15489 | -5/Upper Caves | Discovered new exit (range 13) 15540 | -5/Upper Caves | Entered Zhirov 15540 | -5/Zhirov | Discovered new exit (range 3) 15552 | -5/Zhirov | Met Zhirov 15564 | -5/Zhirov | Learned location of Quarantine (-2) 15564 | -5/Zhirov | Learned location of Command (-1) 15570 | -5/Zhirov | Zhirov requested help retrieving the SGEMP Prototype 15581 | -5/Zhirov | Found Alien Artifact 15581 | -5/Zhirov | Identified Integrated Reactor 15581 | -5/Zhirov | Installed Integrated Reactor, increased core energy generation (+10) 15590 | -5/Zhirov | Found Alien Artifact 15673 | -5/Zhirov | Build established: Construct 15776 | -5/Zhirov | Entered Proximity Caves 15824 | -4/Proximity Caves | Destroyed 8 combat bots 15832 | -4/Proximity Caves | Lost 3 parts (1p2u) 15905 | -4/Proximity Caves | Learned Research trap positions 15906 | -4/Proximity Caves | Spotter reported a threat 15991 | -4/Proximity Caves | Spotter reported a threat 16063 | -4/Proximity Caves | Spotter reported a threat 16113 | -4/Proximity Caves | Learned location of 1 exit from Upper Caves 16538 | -4/Proximity Caves | Entered Factory 16538 | -4/Factory | Evolved 2 slots: Propulsion x1, Utility x1 16539 | -4/Factory | Identified exit to Upper Caves 16788 | -4/Factory | Search patrols dispatched 16806 | -4/Factory | Identified Transdimensional Reconstructor 17101 | -4/Factory | Found Prototype Device 17163 | -4/Factory | Build established: Hacker-Construct 17278 | -4/Factory | Spotted B-86 Titan 17316 | -4/Factory | Garrison activated, responded to threat 17788 | -4/Factory | First assault squad dispatched 17802 | -4/Factory | Identified Adv. EM Shield 18256 | -4/Factory | Entered Upper Caves 18257 | -4/Upper Caves | Identified exit to Upper Caves 18386 | -4/Upper Caves | Build established: Construct 18735 | -4/Upper Caves | Ambushed by wild Derelicts 18981 | -4/Upper Caves | Learned Research trap positions 19405 | -4/Upper Caves | Attracted the attention of an 0b10 checkpoint 19743 | -4/Upper Caves | Entered another Upper Caves area 19794 | -4/Upper Caves | Discovered new exit (range 5) 19846 | -4/Upper Caves | Attracted the attention of an 0b10 checkpoint 20264 | -4/Upper Caves | Encountered a Warlord checkpoint 20954 | -4/Upper Caves | Found DCF Scrap (13 items) 21001 | -4/Upper Caves | Discovered new exit (range 4) 21094 | -4/Upper Caves | Entered a destroyed Warlord outpost 21159 | -4/Upper Caves | Entered Warlord 21211 | -4/Warlord | System corruption cleaned by Quarantine Array 21616 | -4/Warlord | Met Warlord 21623 | -4/Warlord | Build established: Commander-Construct 21641 | -4/Warlord | Warlord's base attacked by MAIN.C 21672 | -4/Warlord | Found Prototype Energy Gun 21672 | -4/Warlord | Identified Vortex Rifle 21677 | -4/Warlord | Found Vortex Rifle 21683 | -4/Warlord | Found Prototype Energy Gun 21683 | -4/Warlord | Identified Vortex Shotgun 21688 | -4/Warlord | Found Vortex Shotgun 21698 | -4/Warlord | Found Prototype Launcher 21802 | -4/Warlord | Found Prototype Device 21810 | -4/Warlord | Found Prototype Processor 21812 | -4/Warlord | Found Prototype Device 21815 | -4/Warlord | Identified Exp. Target Analyzer 21825 | -4/Warlord | Identified Exp. Phase Shifter 21829 | -4/Warlord | Found Prototype Hackware 21853 | -4/Warlord | Identified Ghost Barrier 21874 | -4/Warlord | Identified Vortex Catalyst Activator 21937 | -4/Warlord | Identified Thermal Barrier 21991 | -4/Warlord | Warlord forces counterattacked 22073 | -4/Warlord | Spotted B-90 Cyclops 22075 | -4/Warlord | Spotted B-86 Titan 22104 | -4/Warlord | Spotted LD-22L(g) 22141 | -4/Warlord | Lost 6 allies 22170 | -4/Warlord | Spotted B-86 Titan 22175 | -4/Warlord | Spotted B-90 Cyclops 22188 | -4/Warlord | Discovered new exit (range 14) 22218 | -4/Warlord | Lost 11 allies 22223 | -4/Warlord | Entered Proximity Caves 22223 | -3/Proximity Caves | Accompanied by 2 allies 22375 | -3/Proximity Caves | Spotted B-86 Titan 22449 | -3/Proximity Caves | Build established: Construct 22948 | -3/Proximity Caves | Found Prototype Hackware 23013 | -3/Proximity Caves | Identified Exp. System Shield 23017 | -3/Proximity Caves | Found Prototype Processor 23018 | -3/Proximity Caves | Identified Exp. Signal Interpreter 23523 | -3/Proximity Caves | Discovered new exit (range 15) 23722 | -3/Proximity Caves | Entered Research 23722 | -3/Research | Evolved 2 slots: Power x1, Weapon x1 23723 | -3/Research | Loaded intel: 62 trap records 23905 | -3/Research | Found Prototype Protection 23917 | -3/Research | Spotted B-86 Titan 23984 | -3/Research | Identified exit to Armory 23984 | -3/Research | Identified exit to Testing 24088 | -3/Research | Discovered new exit (range 12) 24112 | -3/Research | Entered Testing 24114 | -3/Testing | Spotted PX-YZI6LPUE70 24172 | -3/Testing | Identified Centrium Heavy Armor Plating 24186 | -3/Testing | Found Prototype Launcher 24194 | -3/Testing | Identified Adv. Micro-nuke Launcher 24213 | -3/Testing | Found Prototype Device 24220 | -3/Testing | Identified Exp. Shield Generator 24261 | -3/Testing | Found Prototype Device 24261 | -3/Testing | Identified Exp. Hardlight Generator 24266 | -3/Testing | Discovered new exit (range 13) 24539 | -3/Testing | Watched by a mysterious "MATRIX" hacker. 24555 | -3/Testing | Found Prototype Processor 24579 | -3/Testing | Identified Spectral Analyzer 24633 | -3/Testing | Found Prototype Energy Cannon 24640 | -3/Testing | Identified Hpw. Disruptor Cannon 24841 | -3/Testing | Found Prototype Device 24842 | -3/Testing | Identified Adv. Kinecellerator 24855 | -3/Testing | Found Prototype Launcher 24869 | -3/Testing | Identified Z-bomb Delivery System 24873 | -3/Testing | Spotted Striker 24876 | -3/Testing | Found Prototype Device 24886 | -3/Testing | Identified Exp. Focal Shield 25001 | -3/Testing | Spotted Striker 25054 | -3/Testing | Entered Research 25054 | -2/Research | Warlord forces began assault on 0b10 25054 | -2/Research | Evolved 2 slots: Utility x2 25055 | -2/Research | Loaded intel: 84 trap records 25067 | -2/Research | Discovered new exit (range 14) 25079 | -2/Research | Distinguished unit "Offensive Angels" dispatched to help 25079 | -2/Research | Spotted B-90 Cyclops 25127 | -2/Research | Lost 8 allies 25146 | -2/Research | Identified exit to Quarantine 25164 | -2/Research | Research machine network offline 25170 | -2/Research | Spotted B-90 Cyclops 25231 | -2/Research | Met up with Warlord 25273 | -2/Research | Lost 3 allies 25293 | -2/Research | Met DD-05H 25309 | -2/Research | Spotted Striker 25311 | -2/Research | Spotted Striker 25342 | -2/Research | Spotted Executioner 25390 | -2/Research | Discovered new exit (range 17) 25822 | -2/Research | Spotted B-90 Cyclops 25835 | -2/Research | Borebot progress halted 25837 | -2/Research | Borebot progress halted 25844 | -2/Research | Borebot progress halted 26054 | -2/Research | Warlord invited to help at Command 26054 | -2/Research | Given Cave Seal Controls access code 26078 | -2/Research | Spotted Striker 26088 | -2/Research | Entered Quarantine 26119 | -2/Quarantine | Found Alien Artifact 26141 | -2/Quarantine | Found Prototype Device 26219 | -2/Quarantine | Identified Exp. ECM Suite 26265 | -2/Quarantine | Lost 8 allies 26384 | -2/Quarantine | Cryocooling Duct disabled 26399 | -2/Quarantine | Ambient heat levels rising (+20) 26399 | -2/Quarantine | Non-combat units ordered to evacuate 26448 | -2/Quarantine | Found Alien Artifact 26616 | -2/Quarantine | Found Prototype Device 26626 | -2/Quarantine | Identified Exp. Actuator Array 26635 | -2/Quarantine | Discovered new exit (range 17) 26705 | -2/Quarantine | Identified Terrabomb 26765 | -2/Quarantine | Found Alien Artifact 26821 | -2/Quarantine | Spotted Fortress 26857 | -2/Quarantine | Discovered new exit (range 6) 26857 | -2/Quarantine | Discovered new exit (range 7) 26887 | -2/Quarantine | Entered Protoforge 26942 | -2/Protoforge | Spotted Hotshot 26942 | -2/Protoforge | Spotted Hotshot 26942 | -2/Protoforge | Spotted Hotshot 26959 | -2/Protoforge | Superfortress began startup sequence 27029 | -2/Protoforge | Identified Subatomic Replicator 27040 | -2/Protoforge | Spotted Hotshot 27041 | -2/Protoforge | Spotted Hotshot 27041 | -2/Protoforge | Spotted Hotshot 27085 | -2/Protoforge | Discovered new exit (range 4) 27183 | -2/Protoforge | Found Prototype Storage 27183 | -2/Protoforge | Identified Cep. NT7 Matterbank 27198 | -2/Protoforge | Used Terrabomb 27198 | -2/Protoforge | Additional patrols dispatched to research labs 27224 | -2/Protoforge | Crushed by falling debris 27237 | -2/Protoforge | Found Prototype Device 27238 | -2/Protoforge | Identified Crosscalibrator 27244 | -2/Protoforge | Spotted V688-q 27280 | -2/Protoforge | Destroyed V688-q 27293 | -2/Protoforge | Spotted Immortal 27296 | -2/Protoforge | Found Prototype Device 27297 | -2/Protoforge | Identified Exp. Thermal Defense Suite 27307 | -2/Protoforge | Spotted Immortal 27308 | -2/Protoforge | Spotted Immortal 27312 | -2/Protoforge | Spotted Immortal 27337 | -2/Protoforge | Destroyed Immortal 27387 | -2/Protoforge | First assault squad dispatched 27402 | -2/Protoforge | Destroyed Immortal 27434 | -2/Protoforge | Destroyed Immortal 27613 | -2/Protoforge | Found Cep. Gyrokinetic System 27733 | -2/Protoforge | Spotted Decapitator 27733 | -2/Protoforge | Spotted Decapitator 27733 | -2/Protoforge | Spotted Decapitator 27764 | -2/Protoforge | Destroyed Immortal 27785 | -2/Protoforge | Found Prototype Processor 27788 | -2/Protoforge | Identified Exp. Melee Analysis Suite 27803 | -2/Protoforge | Found Prototype Device 27805 | -2/Protoforge | Identified Cep. Weapon Articulator 27806 | -2/Protoforge | Found Prototype Device 27810 | -2/Protoforge | Found Prototype Device 27816 | -2/Protoforge | Found Exp. Kinecellerator 27821 | -2/Protoforge | Found Cep. Countertargeting System 27827 | -2/Protoforge | Identified Mni. Quantum Capacitor (x2) 28029 | -2/Protoforge | Forge Plexus network access discovered 28041 | -2/Protoforge | Destroyed Decapitator 28044 | -2/Protoforge | Destroyed Decapitator 28053 | -2/Protoforge | Destroyed Decapitator 28094 | -2/Protoforge | Spotted V858-f 28109 | -2/Protoforge | Found Cep. Miniperforator 28162 | -2/Protoforge | System corruption reached 10% 28204 | -2/Protoforge | Found Cep. Disintegration Ray 28512 | -2/Protoforge | Found Cep. Antigrav Storage Unit 28516 | -2/Protoforge | Found Cep. Chromion Battery 28522 | -2/Protoforge | Found Cep. Chromion Battery 28599 | -2/Protoforge | Spotted Decapitator 28599 | -2/Protoforge | Spotted Decapitator 28599 | -2/Protoforge | Spotted Decapitator 28599 | -2/Protoforge | Spotted Decapitator 28609 | -2/Protoforge | Spotted Decapitator 28609 | -2/Protoforge | Spotted Decapitator 28609 | -2/Protoforge | Spotted Decapitator 28609 | -2/Protoforge | Spotted Decapitator 28630 | -2/Protoforge | Destroyed Decapitator 28641 | -2/Protoforge | Destroyed Decapitator 28667 | -2/Protoforge | Destroyed Decapitator 28676 | -2/Protoforge | Destroyed Decapitator 28693 | -2/Protoforge | Spotted V255-e 28693 | -2/Protoforge | Spotted V808-l 28693 | -2/Protoforge | Spotted V352-y 28697 | -2/Protoforge | Spotted Immortal 28697 | -2/Protoforge | Spotted Immortal 28712 | -2/Protoforge | Destroyed Immortal 28722 | -2/Protoforge | Destroyed Immortal 28730 | -2/Protoforge | Found Exp. Force Field 28750 | -2/Protoforge | Destroyed V808-l 28751 | -2/Protoforge | Destroyed V352-y 28753 | -2/Protoforge | Found Cep. Chromion Battery 28755 | -2/Protoforge | Found Faulty Cep. Energy Mantle 28758 | -2/Protoforge | Found Faulty Cep. Energy Mantle 28762 | -2/Protoforge | Found Cep. RG22 Armor 28777 | -2/Protoforge | Found Cep. Beam Splitter 29043 | -2/Protoforge | Spotted AP7-3 29045 | -2/Protoforge | Spotted AP7-3 29048 | -2/Protoforge | Destroyed AP7-3 29049 | -2/Protoforge | Destroyed AP7-3 29067 | -2/Protoforge | Found Prototype Processor 29070 | -2/Protoforge | Found Prototype Processor 29075 | -2/Protoforge | Found Cep. Impact Drone Bay 29077 | -2/Protoforge | Found Cep. Thermoelectric Network 29079 | -2/Protoforge | Found Cep. Thermoelectric Network 29082 | -2/Protoforge | Found Cep. Cloak Mesh 29085 | -2/Protoforge | Found Cep. Cloak Mesh 29203 | -2/Protoforge | Destroyed 9 combat bots 29350 | -2/Protoforge | Destroyed Decapitator 29351 | -2/Protoforge | Destroyed Decapitator 29362 | -2/Protoforge | Destroyed Decapitator 29363 | -2/Protoforge | Destroyed Decapitator 29384 | -2/Protoforge | Destroyed 19 combat bots 29595 | -2/Protoforge | Identified Cep. Core Analysis Suite (x2) 29721 | -2/Protoforge | Spotted Decapitator 29724 | -2/Protoforge | Destroyed Decapitator 29756 | -2/Protoforge | Destroyed Decapitator 29771 | -2/Protoforge | Spotted Decapitator 29773 | -2/Protoforge | Destroyed Decapitator 29788 | -2/Protoforge | Spotted Decapitator 29793 | -2/Protoforge | Destroyed Decapitator 29814 | -2/Protoforge | Destroyed 11 combat bots 29866 | -2/Protoforge | Spotted Executioner 29867 | -2/Protoforge | Destroyed Executioner 29936 | -2/Protoforge | Spotted Hotshot 29940 | -2/Protoforge | Destroyed Hotshot 29978 | -2/Protoforge | Destroyed 20 combat bots 30031 | -2/Protoforge | Destroyed 10 combat bots 30068 | -2/Protoforge | Spotted Striker 30072 | -2/Protoforge | Spotted Hotshot 30087 | -2/Protoforge | Destroyed Striker 30095 | -2/Protoforge | Spotted Striker 30114 | -2/Protoforge | High security lockdown imminent 30114 | -2/Protoforge | Destroyed Superfortress 30135 | -2/Protoforge | Destroyed 10 combat bots 30189 | -2/Protoforge | Found Cep. Nanofilaments [Endoweave] 30194 | -2/Protoforge | High security lockdown engaged 30198 | -2/Protoforge | Found Prototype Device 30206 | -2/Protoforge | Found Transdimensional Reconstructor 30252 | -2/Protoforge | Destroyed Hotshot 30275 | -2/Protoforge | Destroyed Striker 30306 | -2/Protoforge | Found Cep. Gyrokinetic System 30312 | -2/Protoforge | Spotted V889-v 30312 | -2/Protoforge | Spotted V822-u 30312 | -2/Protoforge | Spotted V212-z 30312 | -2/Protoforge | Spotted V062-r 30542 | -2/Protoforge | Scanned by Researcher 30543 | -2/Protoforge | Warped through subspace 30567 | -2/Protoforge | Spotted Decapitator 30580 | -2/Protoforge | Spotted Hotshot 30580 | -2/Protoforge | Spotted Hotshot 30586 | -2/Protoforge | Spotted Decapitator 30586 | -2/Protoforge | Spotted Decapitator 30587 | -2/Protoforge | Spotted Decapitator 30587 | -2/Protoforge | Spotted Decapitator 30587 | -2/Protoforge | Spotted Decapitator 30591 | -2/Protoforge | Spotted Decapitator 30592 | -2/Protoforge | Spotted Decapitator 30603 | -2/Protoforge | Entered Access 30603 | -1/Access | Evolved 2 slots: Utility x2 30824 | -1/Access | Spotted Striker 30824 | -1/Access | Spotted Striker 30853 | -1/Access | First assault squad dispatched 30853 | -1/Access | Destroyed Striker 30862 | -1/Access | Destroyed Striker 30869 | -1/Access | Spotted Executioner 30869 | -1/Access | Spotted Executioner 30895 | -1/Access | Spotted Striker 30895 | -1/Access | Spotted Striker 31057 | -1/Access | Spotted B-99 Colossus 31057 | -1/Access | Spotted B-99 Colossus 31059 | -1/Access | Discovered new exit (range 4) 31062 | -1/Access | Entered Command 31092 | -1/Command | Spotted Striker 31312 | -1/Command | First assault squad dispatched 31323 | -1/Command | Spotted M Guard 31323 | -1/Command | Spotted M Guard 31323 | -1/Command | Spotted Combat Programmer 31345 | -1/Command | Spotted Combat Programmer 31459 | -1/Command | Spotted Striker 31465 | -1/Command | Destroyed Striker 31535 | -1/Command | Spotted Executioner 31535 | -1/Command | Spotted Executioner 31537 | -1/Command | Destroyed Executioner 31543 | -1/Command | Destroyed Executioner 31548 | -1/Command | Found Prototype Processor 31548 | -1/Command | Identified Exp. Targeting Computer 31552 | -1/Command | Found Prototype Processor 31553 | -1/Command | Identified Exp. Core Analyzer 31559 | -1/Command | Found Exp. Targeting Computer 31569 | -1/Command | System corruption reached 10% 31652 | -1/Command | High security lockdown imminent 31712 | -1/Command | Identified Cep. Navigation Harness 31732 | -1/Command | High security lockdown engaged 31816 | -1/Command | Spotted Alpha 7 31816 | -1/Command | Spotted Striker 31816 | -1/Command | Spotted Executioner 31816 | -1/Command | Spotted Executioner 31816 | -1/Command | Spotted Executioner 31816 | -1/Command | Spotted Executioner 31817 | -1/Command | Spotted Striker 31829 | -1/Command | Lost 11 parts (2p1n4u4w) 31847 | -1/Command | Installed Cep. Nanofilaments [Endoweave], 5 resistances modified: KI +10%, TH +10%, EX -50%, S -20%, P +20% 31929 | -1/Command | Spotted B-99 Colossus 31930 | -1/Command | Discovered new exit (range 5) 31934 | *** | Escaped! Last Messages --------------- KI +10%, TH +10%, EX -50%, S -20%, P +20%. 31851_ Dropped Cep. NT7 Matterbank. 31852_ Extracted 154 matter. 31852_ ALERT: Assault forces dispatched. 31852_ Acquired Cep. NT7 Matterbank. 31861_ H&B42:UUUSCZDOAA34GNJSWF9Q,QRMVPAN KS 31882_ Drawn through space via semi-controlled quantum shift. 31882_ Acquired Unknown Device. 31883_ Identified Imp. Transmission Jammer. 31895_ Drawn through space via semi-controlled quantum shift. 31906_ K-01 Serf cleans the Terminal. 31925_ System corrupted: Energy discharge (-434). 31929_ Drawn through space via semi-controlled quantum shift. 31929_ Access Shell breached. 31929_ Slug penetrates Access Shell. 31929_ Slug penetrates Wall. 31930_ EXIT=FOUND 31933_ Slug penetrates Access Shell. 31933_ Slug penetrates Wall. 31933_ Slug penetrates Reinforced Barrier. Map ----- +----------------------------------------------------+ | #??????????????????????????????????????????????? | | #??????????????????????????????????????????????? | | #??????????????????????????????????????????????? | | #??????????????????????????????????????????????? | | #??????????????????????????????????????????????? | | #??????????????????????????????????????????????? | | #??????????????????????????????????????????????? | | #??????????????????????????????????????????????? | | #??????????????????????????????????????????????? | | #??????????????????????????????????????????????? | | ###? ##??????????????????????????????????????????? | | ## #???????????????????????????????????????#??? | | #???????????????????????????????????????# ?# | | #???????????????????????????????????????# #" | | ## ! #???????????????????????????????????????# #" | | #?????????????????????????????????????????????# | | #?????????????????????????????????????????????# | | #?????????????????????????????????????????????# | | #???????????????????????????????????????#?????# | | #??????????????????????????#####???????? ##### | | #?????????????????????????? #????????" | | #????#????????????????????? #??????????# | | ##?? #??????# # # # ?????? #??????????# | | "## #### """""" #??????????# | | + " " #??????????# | | + ^ " "@ " #??????????# | | + ^ " "" " #??????????# ###+## | | + " ##???##????#??????? | | ######### " "" " "#???#"#####??????? | | ??????????# # # # # E ##????# #??????? | | ????????????#?????# #?????# #??????? | | ??????????????????# B ;#????# +??????? | | ??????????????????###############????# #??????? | | ?????????????????????????????????????# #??????? | | ?????????????????????????????????????# # ###### | | ????????????????###??????????????????###### | | ##+############"#???????????????????????# | | ##???????????????????????# | | #????????????????????????# | | #############+#####?????????????????????# | | ###???????# #?????????????????????+ | | ??????????# #?????????????????????# ||* | | ??????????# """"" #?????????????????????# ||* | | ??????????# ""T"" #?????????????????????# |** | | ??????????# #?????????????????????######## | | ??????????# #????????????????????????????? | | ??????????# /#????????????????????????????? | | ??????????# #????????????????????????????? | | ??????????###########????????????????????????????? | | | +----------------------------------------------------+ Best States ------------- Heat Dissipation 88 Coolant Potential 120 Energy Generation 87 Energy Capacity 4270 Matter Stores 574 Matter Capacity 1050 Sight Range 24 Robot Scan Range 18 Terrain Scan Range 18 Terrain Scan Density 210 ECM Strength 3 Jamming Range 16 Cloak Strength 9 Armor Coverage 600 Resistance: KI 30 Resistance: TH 75 Resistance: P 20 Propulsion Shielding 90 Utility Shielding 66 Weapon Cycling 20 Phase Shifting 20 Evasion (%) 93 Targeting Accuracy 30 Melee Accuracy 8 Core Analysis 11 Recoil Reduction 6 Offensive Hacking 14 Defensive Hacking 14 Item Schematics ----------------- Assault Drone Bay | -5/Zhirov | Free Exp. Heat Sink | -5/Zhirov | Free Exp. Optical Array | -5/Zhirov | Free Imp. Arc Thrower | -5/Zhirov | Free Multitool | -4/Factory | Scanalyzed Graphene Brace | -3/Testing | Scanalyzed Hcp. Storage Unit | -3/Testing | Hacked Cld. Q-thruster | -2/Quarantine | Archive Exp. Cooling System | -2/Quarantine | Archive Adv. Thermal Defense Suite | -2/Quarantine | Archive Cld. Impulse Thruster | -2/Quarantine | Archive Ionic Axe | -2/Quarantine | Archive Gravity Flail | -2/Quarantine | Archive Exp. Signal Interpreter | -2/Quarantine | Archive Cld. Phase Gun | -2/Quarantine | Archive Adv. Variable Charge Gun | -2/Quarantine | Archive Exp. Power Amplifier | -2/Quarantine | Archive Imp. Matter Neutralizer | -2/Quarantine | Archive Imp. Quantum Reactor | -2/Quarantine | Archive Imp. Utility Shielding | -2/Protoforge | Scanalyzed Centrium Heavy Armor Plating | -2/Protoforge | Scanalyzed Adv. Quantum Shading Machine | -2/Protoforge | Archive Point Singularity Launcher | -2/Protoforge | Archive Robot Schematics ------------------ R-10 Processor | -2/Quarantine | Archive T-07 Excavator | -2/Quarantine | Archive R-06 Scavenger | -2/Quarantine | Archive B-74 Champion | -2/Protoforge | Archive Fabricated ------------ Nothing Repaired ---------- Nothing Studied --------- Cmb. Linear Gravjet | -2/Quarantine | Hacked Alien Tech Used ----------------- Integrated Reactor Terrabomb Transdimensional Reconstructor Concept Nanofilaments [Endoweave] Achievements -------------- Into The Furnace Irresistible Scrap Pestilence Challenges ------------ None Game ------ Seed SeismicLatentAutominer Manual? 0 Play Time 07:23:57 Cumulative 1157.4 hours Start 2026.03.09 @ 21:04:31 End 2026.03.10 @ 04:31:26 Sessions 1 Manual Loads 0 Difficulty Rogue Special Mode None Game No. 208 Rogue 208 Adventurer 0 Explorer 0 Win Type 0 Total 70 Types 27/8/11/1/3/1/10/4/3/2 Lore% 95 Gallery% 91 Achievement% 87 Wizard Run 0 Options --------- Layout 0 ASCII 0 Keyboard 0 Movement Numpad Keybinds 0 Fullscreen 1 Font 18/SmallcapsGlow Map View 76x50 Zoom Use 0% Tactical HUD 1 Map Filters NONE Filters NONE Steam 1 RUN: 5d40812f-a446-4995-bc14-0306d6e005e0